Workbook

Sheet home
C2: CALCULADORA DE SOLUCION NUTRITIVAS (SN)
B6: Acerca de este software
B8: La calculadora de Soluciones Nutritivas (SN) es una hoja de cálculo EXCEL™ que ha sido desarrollada por el Dr. Incrocci (Dipartimento di Biologia delle Piante Agrarie, University of Pisa) para asistir a productores y técnicos en el cálculo de la concentración salina de las soluciones madre. La traducción al Español fue realizada por el Dr. Miguel Giménez Moolhuyzen (IFAPA Almería, España).
K9: Inicio >>
B10: Términos y condiciones de uso de software
B12: Esta herramienta informática (software) está disponible libre de cargo. No se permiten su uso comercial, reproducción o distribución. Los autores de este software no son responsables de cualquier tipo de daños y perjuicios causados por el uso del software. La totalidad del riesgo respecto a los usos, análisis, resultados y rendimientos del software es asumida por el usuario. El usuario exime a los creadores de cualquier responsabilidad, expresa o implícita, que se deriven de la aplicación de dicho software.
C14: Agradecimientos: EUPHOROS, "Efficient use of inputs in protected horticulture", EU-FP7-KBBE-2007-1 (grant n° 211457)

Sheet Istruzioni
C2: CALCULADORA DE SOLUCION NUTRITIVAS (SN)
C4: Entrada | H4: Conversor de unidades (ppm>mM)
C6: Soluciones nutritivas | H6: Fertilizantes y ácidos
C8: Informe | H8: Cálculo
B11: Calculadora SN V1.2” GUIA RAPIDA DE INICIO
B12: Luca INCROCCI, Universidad de Pisa, Italia.
C32: Agradecimientos: EUPHOROS, "Efficient use of inputs in protected horticulture", EU-FP7-KBBE-2007-1 (contrato n° 211457)

Sheet Parametri
C2: Entrada
J5: Guía rápida de inicio | O5: Conversor de unidades (ppm>mM)
J7: Soluciones nutritivas | O7: Fertilizantes y ácidos
J9: Informe | O9: Cálculo
B14: 1) Introducir composición iónica del agua de riego (en mM para macros y en µM para micros)
B15: ?
B16: CE (dS/m) | C16: HCO3- | D16: N-NO3 | E16: N-NH4 | F16: P-PO4 | G16: K | H16: Ca | I16: Mg | J16: Na | K16: S-SO4 | L16: Cl | M16: Fe | N16: B | O16: Cu | P16: Zn | Q16: Mn | R16: Mo | AH16: Somma cationi acqua irrigua
C17: millimoles/L | M17: micromoles/L | AH17: =E18+G18+H18*2+I18*2+J18 -> 9.13 | AI17: =AH17-AH21 -> 0.04
B18: =IF(SUM(E18,G18,H18,I18)>0,(E18+G18+H18*2+I18*2+J18)*0.095+0.19,0) -> 1.05735 | C18: ='[1]mezcla aguas'!C8 -> 2.25 | D18: ='[1]mezcla aguas'!D8 -> 0.66 | E18: ='[1]mezcla aguas'!E8 -> 0 | F18: ='[1]mezcla aguas'!F8 -> 0.01 | G18: ='[1]mezcla aguas'!G8 -> 0.08 | H18: ='[1]mezcla aguas'!H8 -> 2.4 | I18: ='[1]mezcla aguas'!I8 -> 1.89 | J18: ='[1]mezcla aguas'!J8 -> 0.47 | K18: ='[1]mezcla aguas'!K8 -> 1.59 | L18: ='[1]mezcla aguas'!L8 -> 2.99 | M18: ='[1]mezcla aguas'!M8 -> 3.6 | N18: ='[1]mezcla aguas'!N8 -> 20.4 | O18: ='[1]mezcla aguas'!O8 -> 0 | P18: ='[1]mezcla aguas'!P8 -> 0 | Q18: ='[1]mezcla aguas'!Q8 -> 1.6 | R18: ='[1]mezcla aguas'!R8 -> 0 | AH18: Somma anioni acqua irrigua
B20: Prueba de ajuste de equilibrio iónico | F20: ?
B21: =IF(AI17>1,"[Cationes] > [Aniones]",IF(AI17<-1,"[Aniones] > [Cationes]","OK")) -> OK | AH21: =C18+D18+F18+K18*2+L18 -> 9.09
B23: Evaluación de la calidad del agua. | F23: ?
B24: =IF(B18<1.001,"OK","HIGH") -> HIGH | C24: =IF(C18<5.01,"OK","ALTO") -> OK | D24: =IF(D18<3.571,"OK","ALTO") -> OK | E24: =IF(E18<1.001,"OK","ALTO") -> OK | F24: =IF(F18<1.001,"OK","ALTO") -> OK | G24: =IF(G18<2.501,"OK","ALTO") -> OK | H24: =IF(H18<4.001,"OK","ALTO") -> OK | I24: =IF(I18<1.001,"OK","ALTO") -> ALTO | J24: =IF(J18<3.001,"OK","ALTO") -> OK | K24: =IF(K18<2.801,"OK","ALTO") -> OK | L24: =IF(L18<3.001,"OK","ALTO") -> OK | M24: =IF(M18>53.71,"ALTO","OK") -> OK | N24: =IF(N18<69.401,"OK","ALTO") -> OK | O24: =IF(O18>15.731,"ALTO","OK") -> OK | P24: =IF(P18>30.591,"ALTO","OK") -> OK | Q24: =IF(Q18>9.101,"ALTO","OK") -> OK | R24: =IF(R18>2.081,"ALTO","OK") -> OK
B26: 2) Parámetros del equipo de fertirriego | G26: ?
B27: Relación de dilución de las soluciones madre | I27: 100 | J27: X | K27: =IF(I27>239.9,"Existe riesgo de precipitación en la solución madre","OK") -> OK
B28: Volumen de los tanques de solución madre (L) | I28: 1500
B30: 3) Seleccionar la solución nutritiva | F30: ? | AA30: 2 | AI30: Coltura: | AK30: Stadio fenologico:
AA31: 8 | AI31: =B32 -> FVH: Fase: 4 sem
B32: FVH: Fase: 4 sem
B34: CE (dS/m) | C34: N-NO3 | D34: N-NH4 | E34: P-PO4 | F34: K | G34: Ca | H34: Mg | I34: Na | J34: S-SO4 | K34: Cl | L34: Fe | M34: B | N34: Cu | O34: Zn | P34: Mn | Q34: Mo | AH34: EC (mS/cm) | AI34: HCO3- | AJ34: N-NO3 | AK34: N-NH4 | AL34: P-PO4 | AM34: K | AN34: Ca | AO34: Mg | AP34: Na | AQ34: S-SO4 | AR34: Cl | AS34: Fe | AT34: B | AU34: Cu | AV34: Zn | AW34: Mn | AX34: Mo
C35: millimoles/L | M35: micromoles/L
B36: =IF(SUM(D36,G36,H36,I36)>0,(D36+F36+G36*2+H36*2+I36)*0.095+0.19,0) -> 1.4535 | C36: =VLOOKUP($B$32,'Formule nutritive'!BA9:BQ58,3,FALSE) -> 8 | D36: =VLOOKUP($B$32,'Formule nutritive'!BA9:BQ58,4,FALSE) -> 1.5 | E36: =VLOOKUP($B$32,'Formule nutritive'!BA9:BQ58,5,FALSE) -> 1 | F36: =VLOOKUP(B32,'Formule nutritive'!BA9:BQ58,6,FALSE) -> 3 | G36: =VLOOKUP($B$32,'Formule nutritive'!BA9:BQ58,7,FALSE) -> 2.5 | H36: =VLOOKUP($B$32,'Formule nutritive'!BA9:BQ58,8,FALSE) -> 1.9 | I36: =VLOOKUP($B$32,'Formule nutritive'!BA9:BQ58,9,FALSE) -> 0 | J36: =VLOOKUP($B$32,'Formule nutritive'!BA9:BQ58,10,FALSE) -> 2 | K36: =VLOOKUP($B$32,'Formule nutritive'!BA9:BQ58,11,FALSE) -> 0 | L36: =VLOOKUP($B$32,'Formule nutritive'!BA9:BQ58,12,FALSE) -> 10 | M36: =VLOOKUP($B$32,'Formule nutritive'!BA9:BQ58,13,FALSE) -> 0.8 | N36: =VLOOKUP($B$32,'Formule nutritive'!BA9:BQ58,14,FALSE) -> 0.05 | O36: =VLOOKUP($B$32,'Formule nutritive'!BA9:BQ58,15,FALSE) -> 0.05 | P36: =VLOOKUP($B$32,'Formule nutritive'!BA9:BQ58,16,FALSE) -> 4.6 | Q36: =VLOOKUP($B$32,'Formule nutritive'!BA9:BQ58,17,FALSE) -> 0.4 | R36: =INDEX('Formule nutritive'!S9:S58,Parametri!$AK$32) ->  | AH36: =IF((AK36+AM36+AN36*2+AO36*2+AP36)>0,((AK36+AM36+AN36*2+AO36*2+AP36)*0.095+0.19),0) -> 1.49815 | AI36: =C18 -> 2.25 | AJ36: =IF(D18>C36,D18,C36) -> 8 | AK36: 1.5 | AL36: 1 | AM36: 3 | AN36: 2.5 | AO36: 1.9 | AP36: 0.47 | AQ36: 2 | AR36: 2.99 | AS36: 10 | AT36: 20.4 | AU36: 0.05 | AV36: 0.05 | AW36: 4.6 | AX36: 0.4
B37: ppm | C37: =C36*14.007 -> 112.056 | D37: =D36*14.007 -> 21.0105 | E37: =E36*30.97 -> 30.97 | F37: =F36*39.1 -> 117.3 | G37: =G36*40.08 -> 100.2 | H37: =H36*24.31 -> 46.189 | I37: =I36*22.9898 -> 0 | J37: =J36*32 -> 64 | K37: =K36*35.47 -> 0 | L37: =L36*55.85/1000 -> 0.5585 | M37: =M36*10.8/1000 -> 0.00864 | N37: =N36*63.55/1000 -> 0.0031775 | O37: =O36*65.38/1000 -> 0.003269 | P37: =P36*54.94/1000 -> 0.252724 | Q37: =Q36*95.95/1000 -> 0.03838
B38: Test | C38: =IF(C36>18,"Anom.","") ->  | D38: =IF(D36>3,"Anom.","") ->  | E38: =IF(E36>2,"Anom.","") ->  | F38: =IF(F36>10,"Anom.","") ->  | G38: =IF(G36>5,"Anom.","") ->  | H38: =IF(H36>2,"Anom.","") ->  | I38: =IF(I36>6.5,"Anom.","") ->  | J38: =IF(J36>6.5,"Anom.","") ->  | K38: =IF(K36>4.5,"Anom.","") ->  | L38: =IF(L36>69.5,"Anom.","") ->  | M38: =IF(M36>70,"Anom.","") ->  | N38: =IF(N36>15,"Anom.","") ->  | O38: =IF(O36>23.01,"Anom.","") ->  | P38: =IF(P36>36,"Anom.","") ->  | Q38: =IF(Q36>8.01,"Anom.","") ->  | AI38: EC (mS/cm) | AJ38: N-NO3 | AK38: N-NH4 | AL38: P-PO4 | AM38: K | AN38: Ca | AO38: Mg | AP38: Na | AQ38: S-SO4 | AR38: Cl
AH39: =IF(AH36>0,(((I42-0.19)/0.095)-((B18-0.19)/0.095))/(((AH36-0.19)/0.095)-((B18-0.19)/0.095)),0) -> 1 | AI39: =IF((AK39+AM39+AN39*2+AO39*2+AP39)>0,((AK39+AM39+AN39*2+AO39*2+AP39)*0.095+ 0.19),0) -> 1.49815 | AJ39: =IF(C36*$AH$39>D18,C36*$AH$39,D18) -> 8 | AK39: 1.5 | AL39: 1 | AM39: 3 | AN39: 2.5 | AO39: 1.9 | AP39: 0.47 | AQ39: 2 | AR39: 2.99
B40: pH | E40: CE (dS/m) | G40: ? | I40: CE (dS/m) consigna | M40: ? | AH40: =IF(AI39-I$42>0.1,AH39-0.1,IF(I$42-AI39>0.1,AH39+0.1,AH39)) -> 1 | AI40: =IF((AK40+AM40+AN40*2+AO40*2+AP40)>0,((AK40+AM40+AN40*2+AO40*2+AP40)*0.095+ 0.19),0) -> 1.49815 | AJ40: =IF(C36*$AH$40>D18,C36*$AH$40,D18) -> 8 | AK40: 1.5 | AL40: 1 | AM40: 3 | AN40: 2.5 | AO40: 1.9 | AP40: 0.47 | AQ40: 2 | AR40: 2.99
E41: calculada | AH41: =IF(AI40-I$42>0.1,AH40-0.1,IF(I$42-AI40>0.1,AH40+0.1,AH40)) -> 1 | AI41: 1.49815 | AJ41: =IF(C36*$AH$41>D18,C36*$AH$41,D18) -> 8 | AK41: 1.5 | AL41: 1 | AM41: 3 | AN41: 2.5 | AO41: 1.9 | AP41: 0.47 | AQ41: 2 | AR41: 2.99
B42: 6.5 | F42: =AH36 -> 1.49815 | I42: =F42 -> 1.49815 | J42: =IF(I42<B18+0.5,"¡CE SIMILAR A LA CE DEL AGUA DE RIEGO! ",IF(I42>B18+2.8,"¡VALOR DE CE ELEVADO!","OK")) -> ¡CE SIMILAR A LA CE DEL AGUA DE RIEGO! | AH42: =IF(AI41-I$42>0.1,AH41-0.1,IF(I$42-AI41>0.1,AH41+0.1,AH41)) -> 1 | AI42: 1.49815 | AJ42: =IF(C36*$AH$42>D18,C36*$AH$42,D18) -> 8 | AK42: 1.5 | AL42: 1 | AM42: 3 | AN42: 2.5 | AO42: 1.9 | AP42: 0.47 | AQ42: 2 | AR42: 2.99
AH43: =IF(AI42-I$42>0.05,AH42-0.05,IF(I$42-AI42>0.05,AH42+0.05,AH42)) -> 1 | AI43: 1.49815 | AJ43: =IF(C36*$AH$43>D18,C36*$AH$43,D18) -> 8 | AK43: 1.5 | AL43: 1 | AM43: 3 | AN43: 2.5 | AO43: 1.9 | AP43: 0.47 | AQ43: 2 | AR43: 2.99
AH44: =IF(AI43-I$42>0.05,AH43-0.05,IF(I$42-AI43>0.05,AH43+0.05,AH43)) -> 1 | AI44: 1.49815 | AJ44: =IF(C36*$AH$44>D18,C36*$AH$44,D18) -> 8 | AK44: 1.5 | AL44: 1 | AM44: 3 | AN44: 2.5 | AO44: 1.9 | AP44: 0.47 | AQ44: 2 | AR44: 2.99
B45: 4) Solución nutritiva real | AH45: =IF(AI44-I$42>0.02,AH44-0.02,IF(I$42-AI44>0.02,AH44+0.02,AH44)) -> 1 | AI45: 1.49815 | AJ45: =IF(C36*$AH$45>D18,C36*$AH$45,D18) -> 8 | AK45: 1.5 | AL45: 1 | AM45: 3 | AN45: 2.5 | AO45: 1.9 | AP45: 0.47 | AQ45: 2 | AR45: 2.99
AH46: =IF(AI45-I$42>0.01,AH45-0.01,IF(I$42-AI45>0.01,AH45+0.01,AH45)) -> 1 | AI46: 1.49815 | AJ46: =IF(C36*$AH$46>D18,C36*$AH$46,D18) -> 8 | AK46: 1.5 | AL46: 1 | AM46: 3 | AN46: 2.5 | AO46: 1.9 | AP46: 0.47 | AQ46: 2 | AR46: 2.99
B47: CE (dS/m) | C47: N-NO3 | D47: N-NH4 | E47: P-PO4 | F47: K | G47: Ca | H47: Mg | I47: Na | J47: S-SO4 | K47: Cl | L47: Fe | M47: B | N47: Cu | O47: Zn | P47: Mn | Q47: Mo | AH47: =IF(AI46-I$42>0.01,AH46-0.01,IF(I$42-AI46>0.01,AH46+0.01,AH46)) -> 1 | AI47: 1.49815 | AJ47: =IF(C36*$AH$47>D18,C36*$AH$47,D18) -> 8 | AK47: 1.5 | AL47: 1 | AM47: 3 | AN47: 2.5 | AO47: 1.9 | AP47: 0.47 | AQ47: 2 | AR47: 2.99
B48: =IF(SUM(D48,G48,H48,I48)>0,(D48+F48+G48*2+H48*2+I48)*0.095+0.19,0) -> 1.49815 | C48: =AJ48 -> 8 | D48: =AK48 -> 1.5 | E48: 1 | F48: 3 | G48: 2.5 | H48: 1.9 | I48: 0.47 | J48: 2 | K48: 2.99 | L48: =IF(M18>L36,M18,L36) -> 10 | M48: 20.4 | N48: 0.05 | O48: 0.05 | P48: 4.6 | Q48: 0.4 | AH48: =IF(AI47-I$42>0.01,AH47-0.01,IF(I$42-AI47>0.01,AH47+0.01,AH47)) -> 1 | AI48: 1.49815 | AJ48: =IF(C36*$AH$48>D18,C36*$AH$48,D18) -> 8 | AK48: 1.5 | AL48: 1 | AM48: 3 | AN48: 2.5 | AO48: 1.9 | AP48: 0.47 | AQ48: 2 | AR48: 2.99
C49: ppm | L49: ppm
B50: ? | C50: =C48*14.007 -> 112.056 | D50: =D48*14.007 -> 21.0105 | E50: =E48*30.974 -> 30.974 | F50: =F48*39.1 -> 117.3 | G50: =G48*40.08 -> 100.2 | H50: =H48*24.312 -> 46.1928 | I50: =I48*22.9898 -> 10.805206 | J50: =J48*32.066 -> 64.132 | K50: =K48*35.453 -> 106.00447 | L50: =L48*55.85/1000 -> 0.5585 | M50: =M48*10.8/1000 -> 0.22032 | N50: =N48*63.55/1000 -> 0.0031775 | O50: =O48*65.38/1000 -> 0.003269 | P50: =P48*54.94/1000 -> 0.252724 | Q50: =Q48*95.95/1000 -> 0.03838
B52: Relación molar de la solución nutritiva | K52: Relación K:Ca:Mg (expresados en miliequivalentes)
B54: N:K | D54: N-NH4:N-NO3 | G54: K: | H54: Ca: | I54: Mg | M54: K: | N54: Ca: | O54: Mg
B55: =(C48+D48)/F48 -> 3.166666667 | D55: =D48/C48 -> 0.1875 | G55: =F48/($F$48+$G$48+$H$48) -> 0.4054054054 | H55: =G48/($F$48+$G$48+$H$48) -> 0.3378378378 | I55: =H48/($F$48+$G$48+$H$48) -> 0.2567567568 | M55: =F48/($F$48+$G$48*2+$H$48*2) -> 0.2542372881 | N55: =G48*2/($F$48+$G$48*2+$H$48*2) -> 0.4237288136 | O55: =H48*2/($F$48+$G$48*2+$H$48*2) -> 0.3220338983

Sheet Acidi & concimi
C1: Fertilizantes y ácidos
I2: Guía rápida de inicio | N2: Conversor de unidades (ppm>mM)
B4: ? | I4: Soluciones nutritivas | N4: Cálculo
I6: Informe | N6: Entrada | AI6: Tabella dei coefficienti moltiplicatori relativi ai contenuti dei vari elementi nei concimi e acidi
B7: Ácidos para neutralización de carbonatos | AH7: Acidi per la neutralizzazione
D8: % p/p | E8: Fórmula química | G8: Densidad | H8: Euro/L | I8: %N-NO3 | J8: %N-NH4 | K8: % P2O5 | L8: % K2O | M8: % CaO | N8: % MgO | O8: % Na | P8: % SO3 | Q8: % Cl | R8: % Fe | S8: % B | T8: % Cu | U8: % Zn | V8: % Mn | W8: % Mo | AI8: N-NO3 | AJ8: N-NH4 | AK8: P | AL8: K | AM8: Ca | AN8: Mg | AO8: Na | AP8: S-SO4 | AQ8: Cl | AR8: Fe | AS8: B | AT8: Cu | AU8: Zn | AV8: Mn | AW8: Mo
G9: (Kg/L)
B10: Ácido nítrico | D10: 65 | E10: HNO3 | G10: 1.39 | H10: 0.723 | I10: =$D10*14.007/63 -> 14.45166667 | AH10: =B10 -> Ácido nítrico | AI10: =I10/14.007/100 -> 0.01031746032
B11: Ácido fosfórico | D11: 85 | E11: H3PO4 | G11: 1.689 | H11: 1.431 | K11: =($D11*30.974/97.998)*2.291 -> 61.54943866 | AH11: =B11 -> Ácido fosfórico | AK11: =K11*0.4364/30.974/100 -> 0.008671845752
B12: Ácido sulfúrico | D12: 96 | E12: H2SO4 | G12: 1.84 | H12: 0.475 | P12: =($D12*32.064/98.08)*2.497 -> 78.36588059 | AH12: =B12 -> Ácido sulfúrico | AP12: =D12/98.08/100 -> 0.009787928222
B13: Ácido clorhídrico | D13: 36.5 | E13: HCl | G13: 1.186 | H13: 0.5 | Q13: =$D13*35.453/36.461 -> 35.49092181 | AH13: =B13 -> Ácido clorhídrico | AQ13: =Q13/45.453/100 -> 0.007808268279
B15: Fertilizantes pre-mezclados | E15: ? | H15: Euro/Kg | I15: %N-NO3 | J15: %N-NH4 | K15: % P2O5 | L15: % K2O | M15: % CaO | N15: % MgO | O15: % Na | P15: % SO3 | Q15: % Cl | R15: % Fe | S15: % B | T15: % Cu | U15: % Zn | V15: % Mn | W15: % Mo | AH15: Idrosolubili complessi | AI15: N-NO3 | AJ15: N-NH4 | AK15: P | AL15: K | AM15: Ca | AN15: Mg | AO15: Na | AP15: S-SO4 | AQ15: Cl | AR15: Fe | AS15: B | AT15: Cu | AU15: Zn | AV15: Mn | AW15: Mo
B16: Fertilizante soluble 1 | AH16: =B16 -> Fertilizante soluble 1 | AI16: =I16/14.007/100 -> 0 | AJ16: 0 | AK16: =K16*0.4364/30.974/100 -> 0 | AL16: =L16*0.83/39.1/100 -> 0 | AM16: =M16*0.715/40.08/100 -> 0 | AN16: =N16*0.603/24.312/100 -> 0 | AO16: =O16/22.9898/100 -> 0 | AP16: =P16*0.4/32.064/100 -> 0 | AQ16: =Q16/35.453/100 -> 0 | AR16: =R16/55.85/100 -> 0 | AS16: =S16/10.8/100 -> 0 | AT16: =T16/63.55/100 -> 0 | AU16: =U16/65.38/100 -> 0 | AV16: =V16/54.94/100 -> 0 | AW16: =W16/95.95/100 -> 0
B17: Fertilizante soluble 2 | AH17: =B17 -> Fertilizante soluble 2 | AI17: 0 | AJ17: 0 | AK17: =K17*0.4364/30.974/100 -> 0 | AL17: =L17*0.83/39.1/100 -> 0 | AM17: =M17*0.715/40.08/100 -> 0 | AN17: =N17*0.603/24.312/100 -> 0 | AO17: =O17/22.9898/100 -> 0 | AP17: =P17*0.4/32/100 -> 0 | AQ17: =Q17/35.453/100 -> 0 | AR17: =R17/55.85/100 -> 0 | AS17: =S17/10.8/100 -> 0 | AT17: =T17/63.55/100 -> 0 | AU17: =U17/65.38/100 -> 0 | AV17: =V17/54.94/100 -> 0 | AW17: =W17/95.95/100 -> 0
B18: Fertilizante soluble 3 | AH18: =B18 -> Fertilizante soluble 3 | AI18: 0 | AJ18: 0 | AK18: =K18*0.4364/30.974/100 -> 0 | AL18: =L18*0.83/39.1/100 -> 0 | AM18: =M18*0.715/40.08/100 -> 0 | AN18: =N18*0.603/24.312/100 -> 0 | AO18: =O18/22.9898/100 -> 0 | AP18: =P18*0.4/32/100 -> 0 | AQ18: =Q18/35.453/100 -> 0 | AR18: =R18/55.85/100 -> 0 | AS18: =S18/10.8/100 -> 0 | AT18: =T18/63.55/100 -> 0 | AU18: =U18/65.38/100 -> 0 | AV18: =V18/54.94/100 -> 0 | AW18: =W18/95.95/100 -> 0
B19: Fertilizantes cálcicos | AH19: Sali contenenti calcio
B20: Nitrato cálcico | E20: 5[Ca(NO3)2*2H2O]NH4NO3 | H20: 0.3 | I20: 14.3 | J20: 1.3 | M20: 26 | AH20: =B20 -> Nitrato cálcico | AI20: =I20/14.007/100 -> 0.01020918112 | AJ20: 0.0009281073749 | AK20: =K20*0.4364/30.974/100 -> 0 | AL20: =L20*0.83/39.1/100 -> 0 | AM20: =M20*0.715/40.08/100 -> 0.004638223553 | AN20: =N20*0.603/24.312/100 -> 0 | AO20: =O20/22.9898/100 -> 0 | AP20: =P20*0.4/32/100 -> 0 | AQ20: =Q20/35.453/100 -> 0 | AR20: =R20/55.85/100 -> 0 | AS20: =S20/10.8/100 -> 0 | AT20: =T20/63.55/100 -> 0 | AU20: =U20/65.38/100 -> 0 | AV20: =V20/54.94/100 -> 0 | AW20: =W20/95.95/100 -> 0
B21: Nitrato cálcico puro | E21: Ca(NO3)2*4H2O | H21: 0.298 | I21: 11.9 | M21: 23.8 | AH21: =B21 -> Nitrato cálcico puro | AI21: 0.008495752124 | AJ21: 0 | AK21: =K21*0.4364/30.974/100 -> 0 | AL21: =L21*0.83/39.1/100 -> 0 | AM21: =M21*0.715/40.08/100 -> 0.004245758483 | AN21: =N21*0.603/24.312/100 -> 0 | AO21: =O21/22.9898/100 -> 0 | AP21: =P21*0.4/32/100 -> 0 | AQ21: =Q21/35.453/100 -> 0 | AR21: =R21/55.85/100 -> 0 | AS21: =S21/10.8/100 -> 0 | AT21: =T21/63.55/100 -> 0 | AU21: =U21/65.38/100 -> 0 | AV21: =V21/54.94/100 -> 0 | AW21: =W21/95.95/100 -> 0
B22: Cloruro cálcico | E22: CaCl2 | M22: 50.5 | Q22: 63.8 | AH22: =B22 -> Cloruro cálcico | AI22: 0 | AJ22: 0 | AK22: =K22*0.4364/30.974/100 -> 0 | AL22: =L22*0.83/39.1/100 -> 0 | AM22: =M22*0.715/40.08/100 -> 0.009008857285 | AN22: =N22*0.603/24.312/100 -> 0 | AO22: =O22/22.9898/100 -> 0 | AP22: =P22*0.4/32/100 -> 0 | AQ22: =Q22/35.453/100 -> 0.01799565622 | AR22: =R22/55.85/100 -> 0 | AS22: =S22/10.8/100 -> 0 | AT22: =T22/63.55/100 -> 0 | AU22: =U22/65.38/100 -> 0 | AV22: =V22/54.94/100 -> 0 | AW22: =W22/95.95/100 -> 0
B23: Fertilizantes amónicos | AH23: Sali contenenti Ammonio
B24: Nitrato amónico | E24: NH4NO3 | H24: 0.298 | I24: 17.2 | J24: 17.2 | AH24: =B24 -> Nitrato amónico | AI24: =I24/14.007/100 -> 0.0122795745 | AJ24: 0.0122795745 | AK24: =K24*0.4364/30.974/100 -> 0 | AL24: =L24*0.83/39.1/100 -> 0 | AM24: =M24*0.715/40.08/100 -> 0 | AN24: =N24*0.603/24.312/100 -> 0 | AO24: =O24/22.9898/100 -> 0 | AP24: =P24*0.4/32/100 -> 0 | AQ24: =Q24/35.453/100 -> 0 | AR24: =R24/55.85/100 -> 0 | AS24: =S24/10.8/100 -> 0 | AT24: =T24/63.55/100 -> 0 | AU24: =U24/65.38/100 -> 0 | AV24: =V24/54.94/100 -> 0 | AW24: =W24/95.95/100 -> 0
B25: Sulfato amónico | E25: (NH4)2SO4 | H25: 0.163 | J25: 21.2 | P25: 60.6 | AH25: =B25 -> Sulfato amónico | AI25: 0 | AJ25: 0.0151352895 | AK25: =K25*0.4364/30.974/100 -> 0 | AL25: =L25*0.83/39.1/100 -> 0 | AM25: =M25*0.715/40.08/100 -> 0 | AN25: =N25*0.603/24.312/100 -> 0 | AO25: =O25/22.9898/100 -> 0 | AP25: =P25*0.4/32/100 -> 0.007575 | AQ25: =Q25/35.453/100 -> 0 | AR25: =R25/55.85/100 -> 0 | AS25: =S25/10.8/100 -> 0 | AT25: =T25/63.55/100 -> 0 | AU25: =U25/65.38/100 -> 0 | AV25: =V25/54.94/100 -> 0 | AW25: =W25/95.95/100 -> 0
B26: Fosfato monoamónico | E26: NH4H2PO4 | H26: 0.798 | J26: 12.2 | K26: 61.6 | AH26: =B26 -> Fosfato monoamónico | AI26: 0 | AJ26: 0.008709930749 | AK26: =K26*0.4364/30.974/100 -> 0.008678969458 | AL26: =L26*0.83/39.1/100 -> 0 | AM26: =M26*0.715/40.08/100 -> 0 | AN26: =N26*0.603/24.312/100 -> 0 | AO26: =O26/22.9898/100 -> 0 | AP26: =P26*0.4/32/100 -> 0 | AQ26: =Q26/35.453/100 -> 0 | AR26: =R26/55.85/100 -> 0 | AS26: =S26/10.8/100 -> 0 | AT26: =T26/63.55/100 -> 0 | AU26: =U26/65.38/100 -> 0 | AV26: =V26/54.94/100 -> 0 | AW26: =W26/95.95/100 -> 0
B27: Fertilizantes fosfóricos | AH27: Sali contenenti Fosforo
B28: Fosfato monopotásico | E28: KH2PO4 | H28: 0.961 | K28: 52.2 | L28: 34.6 | AH28: =B28 -> Fosfato monopotásico | AI28: =I28/14.007/100 -> 0 | AJ28: =J28/14.007/100 -> 0 | AK28: =K28*0.4364/30.974/100 -> 0.007354581262 | AL28: =L28*0.83/39.1/100 -> 0.007344757033 | AM28: =M28*0.715/40.08/100 -> 0 | AN28: =N28*0.603/24.312/100 -> 0 | AO28: =O28/22.9898/100 -> 0 | AP28: =P28*0.4/32/100 -> 0 | AQ28: =Q28/35.453/100 -> 0 | AR28: =R28/55.85/100 -> 0 | AS28: =S28/10.8/100 -> 0 | AT28: =T28/63.55/100 -> 0 | AU28: =U28/65.38/100 -> 0 | AV28: =V28/54.94/100 -> 0 | AW28: =W28/95.95/100 -> 0
B29: Fertilizantes magnésicos | AH29: Sali contenenti Magnesio
B30: Sulfato de magnesio | E30: MgSO4*7H2O | H30: 0.3 | N30: 15.9 | P30: 31.75 | AH30: =B30 -> Sulfato de magnesio | AI30: =I30/14.007/100 -> 0 | AJ30: =J30/14.007/100 -> 0 | AK30: =K30*0.4364/30.974/100 -> 0 | AL30: =L30*0.83/39.1/100 -> 0 | AM30: =M30*0.715/40.08/100 -> 0 | AN30: =N30*0.603/24.312/100 -> 0.003943608095 | AO30: =O30/22.9898/100 -> 0 | AP30: =P30*0.4/32/100 -> 0.00396875 | AQ30: =Q30/35.453/100 -> 0 | AR30: =R30/55.85/100 -> 0 | AS30: =S30/10.8/100 -> 0 | AT30: =T30/63.55/100 -> 0 | AU30: =U30/65.38/100 -> 0 | AV30: =V30/54.94/100 -> 0 | AW30: =W30/95.95/100 -> 0
B31: Nitrato de magnesio | E31: Mg(NO3)2*6H2O | H31: 0.913 | I31: 10.95 | N31: 15.7 | AH31: =B31 -> Nitrato de magnesio | AI31: =I31/14.007/100 -> 0.007817519812 | AJ31: =J31/14.007/100 -> 0 | AK31: =K31*0.4364/30.974/100 -> 0 | AL31: =L31*0.83/39.1/100 -> 0 | AM31: =M31*0.715/40.08/100 -> 0 | AN31: =N31*0.603/24.312/100 -> 0.003894002962 | AO31: =O31/22.9898/100 -> 0 | AP31: =P31*0.4/32/100 -> 0 | AQ31: =Q31/35.453/100 -> 0 | AR31: =R31/55.85/100 -> 0 | AS31: =S31/10.8/100 -> 0 | AT31: =T31/63.55/100 -> 0 | AU31: =U31/65.38/100 -> 0 | AV31: =V31/54.94/100 -> 0 | AW31: =W31/95.95/100 -> 0
B32: Fertilizantes potásicos | AH32: Sali contenenti Potassio
B33: Nitrato potásico | E33: KNO3 | H33: 0.5 | I33: 13.8 | L33: 46.5 | AH33: =B33 -> Nitrato potásico | AI33: =I33/14.007/100 -> 0.009852216749 | AJ33: 0 | AK33: =K33*0.4364/30.974/100 -> 0 | AL33: =L33*0.83/39.1/100 -> 0.00987084399 | AM33: =M33*0.715/40.08/100 -> 0 | AN33: =N33*0.603/24.312/100 -> 0 | AO33: =O33/22.9898/100 -> 0 | AP33: =P33*0.4/32/100 -> 0 | AQ33: =Q33/35.453/100 -> 0 | AR33: =R33/55.85/100 -> 0 | AS33: =S33/10.8/100 -> 0 | AT33: =T33/63.55/100 -> 0 | AU33: =U33/65.38/100 -> 0 | AV33: =V33/54.94/100 -> 0 | AW33: =W33/95.95/100 -> 0
B34: Sulfato potásico | E34: K2SO4 | H34: 0.423 | L34: 52.05 | P34: 44.1 | AH34: =B34 -> Sulfato potásico | AI34: 0 | AJ34: 0 | AK34: =K34*0.4364/30.974/100 -> 0 | AL34: =L34*0.83/39.1/100 -> 0.01104897698 | AM34: =M34*0.715/40.08/100 -> 0 | AN34: =N34*0.603/24.312/100 -> 0 | AO34: =O34/22.9898/100 -> 0 | AP34: =P34*0.4/32/100 -> 0.0055125 | AQ34: =Q34/35.453/100 -> 0 | AR34: =R34/55.85/100 -> 0 | AS34: =S34/10.8/100 -> 0 | AT34: =T34/63.55/100 -> 0 | AU34: =U34/65.38/100 -> 0 | AV34: =V34/54.94/100 -> 0 | AW34: =W34/95.95/100 -> 0
B35: Cloruro potásico | E35: KCl | H35: 0.243 | L35: 61 | Q35: 45.9 | AH35: =B35 -> Cloruro potásico | AI35: 0 | AJ35: 0 | AK35: =K35*0.4364/30.974/100 -> 0 | AL35: =L35*0.83/39.1/100 -> 0.0129488491 | AM35: =M35*0.715/40.08/100 -> 0 | AN35: =N35*0.603/24.312/100 -> 0 | AO35: =O35/22.9898/100 -> 0 | AP35: =P35*0.4/32/100 -> 0 | AQ35: =Q35/35.453/100 -> 0.01294671819 | AR35: =R35/55.85/100 -> 0 | AS35: =S35/10.8/100 -> 0 | AT35: =T35/63.55/100 -> 0 | AU35: =U35/65.38/100 -> 0 | AV35: =V35/54.94/100 -> 0 | AW35: =W35/95.95/100 -> 0
B36: Hierro quelatado | AH36: Sali contenenti Ferro
B37: Mix micro AZ | R37: 6.5 | S37: 0.1 | T37: 0.02 | U37: 0.03 | V37: 3 | W37: 0.4 | AH37: =B37 -> Mix micro AZ | AI37: =I37/14.007/100 -> 0 | AJ37: 0 | AK37: =K37*0.4364/30.974/100 -> 0 | AL37: =L37*0.83/39.1/100 -> 0 | AM37: =M37*0.715/40.08/100 -> 0 | AN37: =N37*0.603/24.312/100 -> 0 | AO37: =O37/22.9898/100 -> 0 | AP37: =P37*0.4/32/100 -> 0 | AQ37: =Q37/35.453/100 -> 0 | AR37: =R37/55.85/100 -> 0.001163831692 | AS37: =S37/10.8/100 -> 9.259259259e-05 | AT37: =T37/63.55/100 -> 3.147128245e-06 | AU37: =U37/65.38/100 -> 4.588559192e-06 | AV37: =V37/54.94/100 -> 0.0005460502366 | AW37: =W37/95.95/100 -> 4.168837936e-05
B38: Hierro DPTA | H38: 7.981 | R38: 6.5 | AH38: =B38 -> Hierro DPTA | AI38: 0 | AJ38: 0 | AK38: =K38*0.4364/30.974/100 -> 0 | AL38: =L38*0.83/39.1/100 -> 0 | AM38: =M38*0.715/40.08/100 -> 0 | AN38: =N38*0.603/24.312/100 -> 0 | AO38: =O38/22.9898/100 -> 0 | AP38: =P38*0.4/32/100 -> 0 | AQ38: =Q38/35.453/100 -> 0 | AR38: =R38/55.85/100 -> 0.001163831692 | AS38: =S38/10.8/100 -> 0 | AT38: =T38/63.55/100 -> 0 | AU38: =U38/65.38/100 -> 0 | AV38: =V38/54.94/100 -> 0 | AW38: =W38/95.95/100 -> 0
B39: Hierro EDDHA | H39: 10.961 | R39: 6 | AH39: =B39 -> Hierro EDDHA | AI39: 0 | AJ39: 0 | AK39: =K39*0.4364/30.974/100 -> 0 | AL39: =L39*0.83/39.1/100 -> 0 | AM39: =M39*0.715/40.08/100 -> 0 | AN39: =N39*0.603/24.312/100 -> 0 | AO39: =O39/22.9898/100 -> 0 | AP39: =P39*0.4/32/100 -> 0 | AQ39: =Q39/35.453/100 -> 0 | AR39: =R39/55.85/100 -> 0.001074306177 | AS39: =S39/10.8/100 -> 0 | AT39: =T39/63.55/100 -> 0 | AU39: =U39/65.38/100 -> 0 | AV39: =V39/54.94/100 -> 0 | AW39: =W39/95.95/100 -> 0
B41: Microelementos | H41: Euro/Kg | I41: %N-NO3 | J41: %N-NH4 | K41: % P2O5 | L41: % K2O | M41: % CaO | N41: % MgO | O41: % Na | P41: % SO3 | Q41: % Cl | R41: % Fe | S41: % B | T41: % Cu | U41: % Zn | V41: % Mn | W41: % Mo | AH41: Sali contenenti microelementi
B42: Microelementos MIX 1 | R42: 4 | S42: 1 | T42: 1 | U42: 1 | V42: 1 | W42: 1 | AH42: =B42 -> Microelementos MIX 1 | AI42: =I42/14.007/100 -> 0 | AJ42: =J42/14.007/100 -> 0 | AK42: =K42*0.4364/30.974/100 -> 0 | AL42: =L42*0.83/39.1/100 -> 0 | AM42: =M42*0.715/40.08/100 -> 0 | AN42: =N42*0.603/24.312/100 -> 0 | AO42: =O42/22.9898/100 -> 0 | AP42: =P42*0.4/32/100 -> 0 | AQ42: =Q42/35.453/100 -> 0 | AR42: =R42/55.85/100 -> 0.0007162041182 | AS42: =S42/10.8/100 -> 0.0009259259259 | AT42: =T42/63.55/100 -> 0.0001573564123 | AU42: =U42/65.38/100 -> 0.0001529519731 | AV42: =V42/54.94/100 -> 0.0001820167455 | AW42: =W42/95.95/100 -> 0.0001042209484
B43: Microelementos MIX 2 | AH43: Microelementos MIX 2 | AI43: 0 | AJ43: 0 | AK43: 0 | AL43: 0 | AM43: 0 | AN43: 0 | AO43: 0 | AP43: =P43*0.4/32/100 -> 0 | AQ43: 0 | AR43: 0 | AS43: 0 | AT43: 0 | AU43: 0 | AV43: 0 | AW43: 0
B44: Borax | E44: Na2B4O7*10H2O | H44: 10.225 | O44: 12.1 | S44: 11.3 | AH44: Borax | AI44: 0 | AJ44: 0 | AK44: 0 | AL44: 0 | AM44: 0 | AN44: 0 | AO44: 0.005263203682 | AP44: 0 | AQ44: 0 | AR44: 0 | AS44: 0.01046296296 | AT44: 0 | AU44: 0 | AV44: 0 | AW44: 0
B45: Ácido bórico | E45: H3BO3 | H45: 19.625 | S45: 17.5 | AH45: Ácido bórico | AI45: 0 | AJ45: 0 | AK45: 0 | AL45: 0 | AM45: 0 | AN45: 0 | AO45: 0 | AP45: 0 | AQ45: 0 | AR45: 0 | AS45: 0.0162037037 | AT45: 0 | AU45: 0 | AV45: 0 | AW45: 0
B46: Sulfato de cobre | E46: CuSO4*5H2O | H46: 14.46 | P46: 32.1 | T46: 25.5 | AH46: Sulfato de cobre | AI46: 0 | AJ46: 0 | AK46: 0 | AL46: 0 | AM46: 0 | AN46: 0 | AO46: 0 | AP46: 0.0040125 | AQ46: 0 | AR46: 0 | AS46: 0 | AT46: 0.004012588513 | AU46: 0 | AV46: 0 | AW46: 0
B47: Cobre quelatado (EDTA) | H47: 17.404 | T47: 15 | AH47: Cobre quelatado (EDTA) | AI47: 0 | AJ47: 0 | AK47: 0 | AL47: 0 | AM47: 0 | AN47: 0 | AO47: 0 | AP47: 0 | AQ47: 0 | AR47: 0 | AS47: 0 | AT47: 0.002360346184 | AU47: 0 | AV47: 0 | AW47: 0
B48: Sulfato de zinc | E48: ZnSO4*7H2O | H48: 30.78 | P48: 27.8 | U48: 22.7 | AH48: Sulfato de zinc | AI48: 0 | AJ48: 0 | AK48: 0 | AL48: 0 | AM48: 0 | AN48: 0 | AO48: 0 | AP48: 0.003475 | AQ48: 0 | AR48: 0 | AS48: 0 | AT48: 0 | AU48: 0.003472009789 | AV48: 0 | AW48: 0
B49: Zinc quelatado (EDTA) | H49: 14.663 | U49: 15 | AH49: Zinc quelatado (EDTA) | AI49: 0 | AJ49: 0 | AK49: 0 | AL49: 0 | AM49: 0 | AN49: 0 | AO49: 0 | AP49: 0 | AQ49: 0 | AR49: 0 | AS49: 0 | AT49: 0 | AU49: 0.002294279596 | AV49: 0 | AW49: 0
B50: Sulfato de manganeso | E50: MnSO4*H2O | H50: 50 | P50: 47.5 | V50: 32.5 | AH50: Sulfato de manganeso | AI50: 0 | AJ50: 0 | AK50: 0 | AL50: 0 | AM50: 0 | AN50: 0 | AO50: 0 | AP50: 0.0059375 | AQ50: 0 | AR50: 0 | AS50: 0 | AT50: 0 | AU50: 0 | AV50: 0.00591554423 | AW50: 0
B51: Quelato de manganeso | H51: 30 | V51: 15 | AH51: Quelato de manganeso | AI51: 0 | AJ51: 0 | AK51: 0 | AL51: 0 | AM51: 0 | AN51: 0 | AO51: 0 | AP51: 0 | AQ51: 0 | AR51: 0 | AS51: 0 | AT51: 0 | AU51: 0 | AV51: 0.002730251183 | AW51: 0
B52: Heptamolibdato de amonio | E52: (NH4)6Mo7O24*4H2O | H52: 37 | J52: 14 | W52: 54.4 | AH52: Heptamolibdato de amonio | AI52: 0 | AJ52: 0.009995002499 | AK52: 0 | AL52: 0 | AM52: 0 | AN52: 0 | AO52: 0 | AP52: 0 | AQ52: 0 | AR52: 0 | AS52: 0 | AT52: 0 | AU52: 0 | AV52: 0 | AW52: 0.005669619594
B53: Molibdato de sodio | E53: Na2MoO4*2H2O | H53: 37.26 | O53: 19 | W53: 39.7 | AH53: Molibdato de sodio | AI53: 0 | AJ53: 0 | AK53: 0 | AL53: 0 | AM53: 0 | AN53: 0 | AO53: 0.008264534707 | AP53: 0 | AQ53: 0 | AR53: 0 | AS53: 0 | AT53: 0 | AU53: 0 | AV53: 0 | AW53: 0.004137571652
B54: Sales de sódio
B55: Cloruro sódico | E55: NaCl | H55: 0.5 | O55: 39.34 | Q55: 60.66 | AH55: =B55 -> Cloruro sódico | AI55: =I55/14.007/100 -> 0 | AJ55: =J55/14.007/100 -> 0 | AK55: =K55*0.4364/30.974/100 -> 0 | AL55: =L55*0.83/39.1/100 -> 0 | AM55: =M55*0.715/40.08/100 -> 0 | AN55: =N55*0.603/24.312/100 -> 0 | AO55: =O55/22.9898/100 -> 0.0171119366 | AP55: =P55*0.4/32/100 -> 0 | AQ55: =Q55/35.453/100 -> 0.01710997659 | AR55: =R55/55.85/100 -> 0 | AS55: =S55/10.8/100 -> 0 | AT55: =T55/63.55/100 -> 0 | AU55: =U55/65.38/100 -> 0 | AV55: =V55/54.94/100 -> 0 | AW55: =W55/95.95/100 -> 0

Sheet Formule nutritive
B1: Soluciónes nutritivas
H2: Guía rápida de inicio | M2: Conversor de unidades (ppm>mM)
H4: Cálculo | M4: Fertilizantes y ácidos
D6: ? | H6: Informe | M6: Entrada
A8: Cultivo | B8: Fase | C8: EC (dS/m) | D8: N-NO3 | E8: N-NH4 | F8: P-PO4 | G8: K | H8: Ca | I8: Mg | J8: Na | K8: S-SO4 | L8: Cl | M8: Fe | N8: B | O8: Cu | P8: Zn | Q8: Mn | R8: Mo | S8: Prueba de equilibrio iónico | X8: C+ - A- | BA8: Coltura Stadio: Stadio | BB8: EC (mS/cm) | BC8: N-NO3 | BD8: N-NH4 | BE8: P-PO4 | BF8: K | BG8: Ca | BH8: Mg | BI8: Na | BJ8: S-SO4 | BK8: Cl | BL8: Fe | BM8: B | BN8: Cu | BO8: Zn | BP8: Mn | BQ8: Mo
A9: Berenjena | B9: Simple | C9: =IF((G9+H9*2+I9*2+E9+J9)>0,(0.095*(G9+H9*2+I9*2+E9+J9)+0.19),0) -> 1.957 | D9: 15 | E9: 1 | F9: 1.3 | G9: 7 | H9: 3.5 | I9: 1.8 | J9: 0 | K9: 1.5 | L9: 0 | M9: 15 | N9: 30 | O9: 1 | P9: 5 | Q9: 10 | R9: 1 | S9: =IF(X9>1,"[Cationes] > [Aniones]",IF(X9<-1,"[Aniones] > [Cationes]","")) ->  | X9: =(E9+G9+H9*2+I9*2+J9)-(D9+F9+K9*2+L9) -> -0.7 | Z9: =A9&": fase "&B9 -> Berenjena: fase Simple | AA9: 1 | BA9: =A9&": Fase: "&B9 -> Berenjena: Fase: Simple | BB9: =C9 -> 1.957 | BC9: =D9 -> 15 | BD9: 1 | BE9: 1.3 | BF9: 7 | BG9: 3.5 | BH9: 1.8 | BI9: 0 | BJ9: 1.5 | BK9: 0 | BL9: 15 | BM9: 30 | BN9: =O9 -> 1 | BO9: =P9 -> 5 | BP9: =Q9 -> 10 | BQ9: =R9 -> 1
A10: Calabaza | B10: Simple | C10: 2.166 | D10: 16 | E10: 1.3 | F10: 1.5 | G10: 7.5 | H10: 4 | I10: 2 | J10: 0 | K10: 1.8 | L10: 0 | M10: 10 | N10: 50 | O10: 1 | P10: 5 | Q10: 10 | R10: 1 | X10: -0.3 | Z10: Calabaza: fase Simple | AA10: 2 | BA10: =A10&": Fase: "&B10 -> Calabaza: Fase: Simple | BB10: =C10 -> 2.166 | BC10: =D10 -> 16 | BD10: =E10 -> 1.3 | BE10: =F10 -> 1.5 | BF10: =G10 -> 7.5 | BG10: =H10 -> 4 | BH10: =I10 -> 2 | BI10: =J10 -> 0 | BJ10: =K10 -> 1.8 | BK10: =L10 -> 0 | BL10: =M10 -> 10 | BM10: =N10 -> 50 | BN10: =O10 -> 1 | BO10: =P10 -> 5 | BP10: =Q10 -> 10 | BQ10: =R10 -> 1
A11: Clavel | B11: Simple | C11: 1.748 | D11: 13 | E11: 1 | F11: 1.3 | G11: 6 | H11: 3.5 | I11: 1.2 | J11: 0 | K11: 1.5 | L11: 0 | M11: 25 | N11: 30 | O11: 1 | P11: 5 | Q11: 10 | R11: 1 | X11: -0.9 | Z11: Clavel: fase Simple | AA11: 3 | BA11: Clavel: Fase: Simple | BB11: 1.748 | BC11: 13 | BD11: 1 | BE11: 1.3 | BF11: 6 | BG11: 3.5 | BH11: 1.2 | BI11: 0 | BJ11: 1.5 | BK11: 0 | BL11: 25 | BM11: 30 | BN11: 1 | BO11: 5 | BP11: 10 | BQ11: 1
A12: Fresa | B12: Simple | C12: 1.7005 | D12: 9.995002499 | E12: 1 | F12: 1 | G12: 5.5 | H12: 3.5 | I12: 1.2 | J12: 0 | K12: 2 | L12: 0 | M12: 20 | N12: 30 | O12: 1 | P12: 5 | Q12: 10 | R12: 1 | X12: 0.9049975012 | Z12: Fresa: fase Simple | AA12: 4 | BA12: Fresa: Fase: Simple | BB12: 1.7005 | BC12: 9.995002499 | BD12: 1 | BE12: 1 | BF12: 5.5 | BG12: 3.5 | BH12: 1.2 | BI12: 0 | BJ12: 2 | BK12: 0 | BL12: 20 | BM12: 30 | BN12: 1 | BO12: 5 | BP12: 10 | BQ12: 1
A13: Gerbera | B13: Simple | C13: 1.52 | D13: 11 | E13: 1 | F13: 1.3 | G13: 5 | H13: 3 | I13: 1 | J13: 0 | K13: 1.2 | L13: 0 | M13: 35 | N13: 30 | O13: 1 | P13: 5 | Q13: 5 | R13: 1 | X13: -0.7 | Z13: Gerbera: fase Simple | AA13: 5 | BA13: Gerbera: Fase: Simple | BB13: 1.52 | BC13: 11 | BD13: 1 | BE13: 1.3 | BF13: 5 | BG13: 3 | BH13: 1 | BI13: 0 | BJ13: 1.2 | BK13: 0 | BL13: 35 | BM13: 30 | BN13: 1 | BO13: 5 | BP13: 5 | BQ13: 1
A14: Hoagland & Arnon | B14: Universal (1938) | C14: 1.995 | D14: 14 | E14: 1 | F14: 1 | G14: 6 | H14: 4 | I14: 2 | J14: 0 | K14: 2 | L14: 0 | M14: 45 | N14: 45 | O14: 1 | P14: 1 | Q14: 10 | R14: 1 | X14: 0 | Z14: Hoagland & Arnon: fase Universal (1938) | AA14: 6 | BA14: Hoagland & Arnon: Fase: Universal (1938) | BB14: 1.995 | BC14: 14 | BD14: 1 | BE14: 1 | BF14: 6 | BG14: 4 | BH14: 2 | BI14: 0 | BJ14: 2 | BK14: 0 | BL14: 45 | BM14: 45 | BN14: 1 | BO14: 1 | BP14: 10 | BQ14: 1
A15: Hortalizas de fruto | B15: Simple | C15: 2.0425 | D15: 15 | E15: 1 | F15: 1.3 | G15: 7.5 | H15: 4 | I15: 1.5 | J15: 0 | K15: 2 | L15: 0 | M15: 15 | N15: 30 | O15: 1 | P15: 5 | Q15: 10 | R15: 1 | X15: -0.8 | Z15: Hortalizas de fruto: fase Simple | AA15: 7 | BA15: Hortalizas de fruto: Fase: Simple | BB15: 2.0425 | BC15: 15 | BD15: 1 | BE15: 1.3 | BF15: 7.5 | BG15: 4 | BH15: 1.5 | BI15: 0 | BJ15: 2 | BK15: 0 | BL15: 15 | BM15: 30 | BN15: 1 | BO15: 5 | BP15: 10 | BQ15: 1
A16: Hortalizas de hoja | B16: Simple | C16: 2.375 | D16: 16 | E16: 2 | F16: 2 | G16: 10 | H16: 4.5 | I16: 1 | J16: 0 | K16: 2.5 | L16: 0 | M16: 40 | N16: 30 | O16: 1 | P16: 5 | Q16: 5 | R16: 1 | X16: 0 | Z16: Hortalizas de hoja: fase Simple | AA16: 8 | BA16: Hortalizas de hoja: Fase: Simple | BB16: 2.375 | BC16: 16 | BD16: 2 | BE16: 2 | BF16: 10 | BG16: 4.5 | BH16: 1 | BI16: 0 | BJ16: 2.5 | BK16: 0 | BL16: 40 | BM16: 30 | BN16: 1 | BO16: 5 | BP16: 5 | BQ16: 1
A17: Judía | B17: Simple | C17: 1.7005 | D17: 12 | E17: 1 | F17: 1.2 | G17: 5.5 | H17: 3.5 | I17: 1.2 | J17: 0 | K17: 1.2 | L17: 0 | M17: 15 | N17: 50 | O17: 1 | P17: 5 | Q17: 10 | R17: 2 | X17: 0.3 | Z17: Judía: fase Simple | AA17: 9 | BA17: Judía: Fase: Simple | BB17: 1.7005 | BC17: 12 | BD17: 1 | BE17: 1.2 | BF17: 5.5 | BG17: 3.5 | BH17: 1.2 | BI17: 0 | BJ17: 1.2 | BK17: 0 | BL17: 15 | BM17: 50 | BN17: 1 | BO17: 5 | BP17: 10 | BQ17: 2
A18: Melón Galia | B18: Simple | C18: 2.033 | D18: 16 | E18: 1 | F18: 1.3 | G18: 7 | H18: 4 | I18: 1.7 | J18: 0 | K18: 1.5 | L18: 0 | M18: 10 | N18: 20 | O18: 1 | P18: 5 | Q18: 10 | R18: 1 | X18: -0.9 | Z18: Melón Galia: fase Simple | AA18: 10 | BA18: Melón Galia: Fase: Simple | BB18: 2.033 | BC18: 16 | BD18: 1 | BE18: 1.3 | BF18: 7 | BG18: 4 | BH18: 1.7 | BI18: 0 | BJ18: 1.5 | BK18: 0 | BL18: 10 | BM18: 20 | BN18: 1 | BO18: 5 | BP18: 10 | BQ18: 1
A19: Pepino | B19: Simple | C19: 1.995 | D19: 15 | E19: 1 | F19: 1.2 | G19: 7 | H19: 4 | I19: 1.5 | J19: 0 | K19: 1.6 | L19: 0 | M19: 15 | N19: 30 | O19: 1 | P19: 5 | Q19: 10 | R19: 1 | X19: -0.4 | Z19: Pepino: fase Simple | AA19: 11 | BA19: Pepino: Fase: Simple | BB19: 1.995 | BC19: 15 | BD19: 1 | BE19: 1.2 | BF19: 7 | BG19: 4 | BH19: 1.5 | BI19: 0 | BJ19: 1.6 | BK19: 0 | BL19: 15 | BM19: 30 | BN19: 1 | BO19: 5 | BP19: 10 | BQ19: 1
A20: Pimiento | B20: Simple | C20: 1.995 | D20: 15 | E20: 1 | F20: 1.3 | G20: 8 | H20: 3.5 | I20: 1.5 | J20: 0 | K20: 1.5 | L20: 0 | M20: 15 | N20: 30 | O20: 1 | P20: 5 | Q20: 10 | R20: 1 | X20: -0.3 | Z20: Pimiento: fase Simple | AA20: 12 | BA20: Pimiento: Fase: Simple | BB20: 1.995 | BC20: 15 | BD20: 1 | BE20: 1.3 | BF20: 8 | BG20: 3.5 | BH20: 1.5 | BI20: 0 | BJ20: 1.5 | BK20: 0 | BL20: 15 | BM20: 30 | BN20: 1 | BO20: 5 | BP20: 10 | BQ20: 1
A21: Plantas ornamentales de exterior | B21: Simple | C21: 1.368 | D21: 8.5 | E21: 0.5 | F21: 1 | G21: 4.5 | H21: 2.5 | I21: 1.2 | J21: 0 | K21: 1.5 | L21: 0 | M21: 20 | N21: 20 | O21: 1 | P21: 5 | Q21: 10 | R21: 1 | X21: -0.1 | Z21: Plantas ornamentales de exterior: fase Simple | AA21: 13 | BA21: Plantas ornamentales de exterior: Fase: Simple | BB21: 1.368 | BC21: 8.5 | BD21: 0.5 | BE21: 1 | BF21: 4.5 | BG21: 2.5 | BH21: 1.2 | BI21: 0 | BJ21: 1.5 | BK21: 0 | BL21: 20 | BM21: 20 | BN21: 1 | BO21: 5 | BP21: 10 | BQ21: 1
A22: Rosas | B22: Simple | C22: 1.52 | D22: 11 | E22: 1 | F22: 1.3 | G22: 5 | H22: 3 | I22: 1 | J22: 0 | K22: 1.3 | L22: 0 | M22: 25 | N22: 25 | O22: 1 | P22: 5 | Q22: 5 | R22: 1 | X22: -0.9 | Z22: Rosas: fase Simple | AA22: 14 | BA22: Rosas: Fase: Simple | BB22: 1.52 | BC22: 11 | BD22: 1 | BE22: 1.3 | BF22: 5 | BG22: 3 | BH22: 1 | BI22: 0 | BJ22: 1.3 | BK22: 0 | BL22: 25 | BM22: 25 | BN22: 1 | BO22: 5 | BP22: 5 | BQ22: 1
A23: Tomate | B23: Simple | C23: 2.09 | D23: 14 | E23: 1 | F23: 1 | G23: 8 | H23: 4 | I23: 1.5 | J23: 0 | K23: 2.5 | L23: 0 | M23: 15 | N23: 20 | O23: 1 | P23: 5 | Q23: 10 | R23: 1 | X23: 0 | Z23: Tomate: fase Simple | AA23: 15 | BA23: Tomate: Fase: Simple | BB23: 2.09 | BC23: 14 | BD23: 1 | BE23: 1 | BF23: 8 | BG23: 4 | BH23: 1.5 | BI23: 0 | BJ23: 2.5 | BK23: 0 | BL23: 15 | BM23: 20 | BN23: 1 | BO23: 5 | BP23: 10 | BQ23: 1
A24: FVH | B24: 4 sem | C24: 1.4535 | D24: 8 | E24: 1.5 | F24: 1 | G24: 3 | H24: 2.5 | I24: 1.9 | J24: 0 | K24: 2 | L24: 0 | M24: 10 | N24: 0.8 | O24: 0.05 | P24: 0.05 | Q24: 4.6 | R24: 0.4 | X24: 0.3 | Z24: FVH: fase 4 sem | AA24: 16 | BA24: FVH: Fase: 4 sem | BB24: 1.4535 | BC24: 8 | BD24: 1.5 | BE24: 1 | BF24: 3 | BG24: 2.5 | BH24: 1.9 | BI24: 0 | BJ24: 2 | BK24: 0 | BL24: 10 | BM24: 0.8 | BN24: 0.05 | BO24: 0.05 | BP24: 4.6 | BQ24: 0.4
C25: 0 | X25: 0 | Z25: : fase | AA25: 17 | BA25: : Fase: | BB25: 0 | BC25: 0 | BD25: 0 | BE25: 0 | BF25: 0 | BG25: 0 | BH25: 0 | BI25: 0 | BJ25: 0 | BK25: 0 | BL25: 0 | BM25: 0 | BN25: 0 | BO25: 0 | BP25: 0 | BQ25: 0
A26: zz nueva solución | B26: : introducir valores | C26: 0 | X26: 0 | Z26: zz nueva solución: fase : introducir valores | AA26: 18 | BA26: zz nueva solución: Fase: : introducir valores | BB26: 0 | BC26: 0 | BD26: 0 | BE26: 0 | BF26: 0 | BG26: 0 | BH26: 0 | BI26: 0 | BJ26: 0 | BK26: 0 | BL26: 0 | BM26: 0 | BN26: 0 | BO26: 0 | BP26: 0 | BQ26: 0
A27: zz nueva solución | B27: : introducir valores | C27: 0 | X27: 0 | Z27: zz nueva solución: fase : introducir valores | AA27: 19 | BA27: zz nueva solución: Fase: : introducir valores | BB27: 0 | BC27: 0 | BD27: 0 | BE27: 0 | BF27: 0 | BG27: 0 | BH27: 0 | BI27: 0 | BJ27: 0 | BK27: 0 | BL27: 0 | BM27: 0 | BN27: 0 | BO27: 0 | BP27: 0 | BQ27: 0
A28: zz nueva solución | B28: : introducir valores | C28: 0 | X28: 0 | Z28: zz nueva solución: fase : introducir valores | AA28: 20 | BA28: zz nueva solución: Fase: : introducir valores | BB28: 0 | BC28: 0 | BD28: 0 | BE28: 0 | BF28: 0 | BG28: 0 | BH28: 0 | BI28: 0 | BJ28: 0 | BK28: 0 | BL28: 0 | BM28: 0 | BN28: 0 | BO28: 0 | BP28: 0 | BQ28: 0
A29: zz nueva solución | B29: : introducir valores | C29: 0 | X29: 0 | Z29: zz nueva solución: fase : introducir valores | AA29: 21 | BA29: zz nueva solución: Fase: : introducir valores | BB29: 0 | BC29: 0 | BD29: 0 | BE29: 0 | BF29: 0 | BG29: 0 | BH29: 0 | BI29: 0 | BJ29: 0 | BK29: 0 | BL29: 0 | BM29: 0 | BN29: 0 | BO29: 0 | BP29: 0 | BQ29: 0
A30: zz nueva solución | B30: : introducir valores | C30: 0 | X30: 0 | Z30: zz nueva solución: fase : introducir valores | AA30: 22 | BA30: zz nueva solución: Fase: : introducir valores | BB30: 0 | BC30: 0 | BD30: 0 | BE30: 0 | BF30: 0 | BG30: 0 | BH30: 0 | BI30: 0 | BJ30: 0 | BK30: 0 | BL30: 0 | BM30: 0 | BN30: 0 | BO30: 0 | BP30: 0 | BQ30: 0
A31: zz nueva solución | B31: : introducir valores | C31: 0 | X31: 0 | Z31: zz nueva solución: fase : introducir valores | AA31: 23 | BA31: zz nueva solución: Fase: : introducir valores | BB31: 0 | BC31: 0 | BD31: 0 | BE31: 0 | BF31: 0 | BG31: 0 | BH31: 0 | BI31: 0 | BJ31: 0 | BK31: 0 | BL31: 0 | BM31: 0 | BN31: 0 | BO31: 0 | BP31: 0 | BQ31: 0
A32: zz nueva solución | B32: : introducir valores | C32: 0 | X32: 0 | Z32: zz nueva solución: fase : introducir valores | AA32: 24 | BA32: zz nueva solución: Fase: : introducir valores | BB32: 0 | BC32: 0 | BD32: 0 | BE32: 0 | BF32: 0 | BG32: 0 | BH32: 0 | BI32: 0 | BJ32: 0 | BK32: 0 | BL32: 0 | BM32: 0 | BN32: 0 | BO32: 0 | BP32: 0 | BQ32: 0
A33: zz nueva solución | B33: : introducir valores | C33: 0 | X33: 0 | Z33: zz nueva solución: fase : introducir valores | AA33: 25 | BA33: zz nueva solución: Fase: : introducir valores | BB33: 0 | BC33: 0 | BD33: 0 | BE33: 0 | BF33: 0 | BG33: 0 | BH33: 0 | BI33: 0 | BJ33: 0 | BK33: 0 | BL33: 0 | BM33: 0 | BN33: 0 | BO33: 0 | BP33: 0 | BQ33: 0
A34: zz nueva solución | B34: : introducir valores | C34: 0 | X34: 0 | Z34: zz nueva solución: fase : introducir valores | AA34: 26 | BA34: zz nueva solución: Fase: : introducir valores | BB34: 0 | BC34: 0 | BD34: 0 | BE34: 0 | BF34: 0 | BG34: 0 | BH34: 0 | BI34: 0 | BJ34: 0 | BK34: 0 | BL34: 0 | BM34: 0 | BN34: 0 | BO34: 0 | BP34: 0 | BQ34: 0
A35: zz nueva solución | B35: : introducir valores | C35: 0 | X35: 0 | Z35: zz nueva solución: fase : introducir valores | AA35: 27 | BA35: zz nueva solución: Fase: : introducir valores | BB35: 0 | BC35: 0 | BD35: 0 | BE35: 0 | BF35: 0 | BG35: 0 | BH35: 0 | BI35: 0 | BJ35: 0 | BK35: 0 | BL35: 0 | BM35: 0 | BN35: 0 | BO35: 0 | BP35: 0 | BQ35: 0
A36: zz nueva solución | B36: : introducir valores | C36: 0 | X36: 0 | Z36: zz nueva solución: fase : introducir valores | AA36: 28 | BA36: zz nueva solución: Fase: : introducir valores | BB36: 0 | BC36: 0 | BD36: 0 | BE36: 0 | BF36: 0 | BG36: 0 | BH36: 0 | BI36: 0 | BJ36: 0 | BK36: 0 | BL36: 0 | BM36: 0 | BN36: 0 | BO36: 0 | BP36: 0 | BQ36: 0
A37: zz nueva solución | B37: : introducir valores | C37: 0 | X37: 0 | Z37: zz nueva solución: fase : introducir valores | AA37: 29 | BA37: zz nueva solución: Fase: : introducir valores | BB37: 0 | BC37: 0 | BD37: 0 | BE37: 0 | BF37: 0 | BG37: 0 | BH37: 0 | BI37: 0 | BJ37: 0 | BK37: 0 | BL37: 0 | BM37: 0 | BN37: 0 | BO37: 0 | BP37: 0 | BQ37: 0
A38: zz nueva solución | B38: : introducir valores | C38: 0 | X38: 0 | Z38: zz nueva solución: fase : introducir valores | AA38: 30 | BA38: zz nueva solución: Fase: : introducir valores | BB38: 0 | BC38: 0 | BD38: 0 | BE38: 0 | BF38: 0 | BG38: 0 | BH38: 0 | BI38: 0 | BJ38: 0 | BK38: 0 | BL38: 0 | BM38: 0 | BN38: 0 | BO38: 0 | BP38: 0 | BQ38: 0
A39: zz nueva solución | B39: : introducir valores | C39: 0 | X39: 0 | Z39: zz nueva solución: fase : introducir valores | AA39: 31 | BA39: zz nueva solución: Fase: : introducir valores | BB39: 0 | BC39: 0 | BD39: 0 | BE39: 0 | BF39: 0 | BG39: 0 | BH39: 0 | BI39: 0 | BJ39: 0 | BK39: 0 | BL39: 0 | BM39: 0 | BN39: 0 | BO39: 0 | BP39: 0 | BQ39: 0
A40: zz nueva solución | B40: : introducir valores | C40: 0 | X40: 0 | Z40: zz nueva solución: fase : introducir valores | AA40: 32 | BA40: zz nueva solución: Fase: : introducir valores | BB40: 0 | BC40: 0 | BD40: 0 | BE40: 0 | BF40: 0 | BG40: 0 | BH40: 0 | BI40: 0 | BJ40: 0 | BK40: 0 | BL40: 0 | BM40: 0 | BN40: 0 | BO40: 0 | BP40: 0 | BQ40: 0
A41: zz nueva solución | B41: : introducir valores | C41: =IF((G41+H41*2+I41*2+E41+J41)>0,(0.095*(G41+H41*2+I41*2+E41+J41)+0.19),0) -> 0 | S41: =IF(X41>1,"[Cationes] > [Aniones]",IF(X41<-1,"[Aniones] > [Cationes]","")) ->  | X41: =(E41+G41+H41*2+I41*2+J41)-(D41+F41+K41*2+L41) -> 0 | Z41: =A41&": fase "&B41 -> zz nueva solución: fase : introducir valores | AA41: 33 | BA41: zz nueva solución: Fase: : introducir valores | BB41: 0 | BC41: 0 | BD41: 0 | BE41: 0 | BF41: 0 | BG41: 0 | BH41: 0 | BI41: 0 | BJ41: 0 | BK41: 0 | BL41: 0 | BM41: 0 | BN41: 0 | BO41: 0 | BP41: 0 | BQ41: 0
A42: zz nueva solución | B42: : introducir valores | C42: 0 | X42: 0 | Z42: zz nueva solución: fase : introducir valores | AA42: 34 | BA42: zz nueva solución: Fase: : introducir valores | BB42: 0 | BC42: 0 | BD42: 0 | BE42: 0 | BF42: 0 | BG42: 0 | BH42: 0 | BI42: 0 | BJ42: 0 | BK42: 0 | BL42: 0 | BM42: 0 | BN42: 0 | BO42: 0 | BP42: 0 | BQ42: 0
A43: zz nueva solución | B43: : introducir valores | C43: 0 | X43: 0 | Z43: zz nueva solución: fase : introducir valores | AA43: 35 | BA43: zz nueva solución: Fase: : introducir valores | BB43: 0 | BC43: 0 | BD43: 0 | BE43: 0 | BF43: 0 | BG43: 0 | BH43: 0 | BI43: 0 | BJ43: 0 | BK43: 0 | BL43: 0 | BM43: 0 | BN43: 0 | BO43: 0 | BP43: 0 | BQ43: 0
A44: zz nueva solución | B44: : introducir valores | C44: 0 | X44: 0 | Z44: zz nueva solución: fase : introducir valores | AA44: 36 | BA44: zz nueva solución: Fase: : introducir valores | BB44: 0 | BC44: 0 | BD44: 0 | BE44: 0 | BF44: 0 | BG44: 0 | BH44: 0 | BI44: 0 | BJ44: 0 | BK44: 0 | BL44: 0 | BM44: 0 | BN44: 0 | BO44: 0 | BP44: 0 | BQ44: 0
A45: zz nueva solución | B45: : introducir valores | C45: 0 | X45: 0 | Z45: zz nueva solución: fase : introducir valores | AA45: 37 | BA45: zz nueva solución: Fase: : introducir valores | BB45: 0 | BC45: 0 | BD45: 0 | BE45: 0 | BF45: 0 | BG45: 0 | BH45: 0 | BI45: 0 | BJ45: 0 | BK45: 0 | BL45: 0 | BM45: 0 | BN45: 0 | BO45: 0 | BP45: 0 | BQ45: 0
A46: zz nueva solución | B46: : introducir valores | C46: 0 | X46: 0 | Z46: zz nueva solución: fase : introducir valores | AA46: 38 | BA46: zz nueva solución: Fase: : introducir valores | BB46: 0 | BC46: 0 | BD46: 0 | BE46: 0 | BF46: 0 | BG46: 0 | BH46: 0 | BI46: 0 | BJ46: 0 | BK46: 0 | BL46: 0 | BM46: 0 | BN46: 0 | BO46: 0 | BP46: 0 | BQ46: 0
A47: zz nueva solución | B47: : introducir valores | C47: 0 | X47: 0 | Z47: zz nueva solución: fase : introducir valores | AA47: 39 | BA47: zz nueva solución: Fase: : introducir valores | BB47: 0 | BC47: 0 | BD47: 0 | BE47: 0 | BF47: 0 | BG47: 0 | BH47: 0 | BI47: 0 | BJ47: 0 | BK47: 0 | BL47: 0 | BM47: 0 | BN47: 0 | BO47: 0 | BP47: 0 | BQ47: 0
A48: zz nueva solución | B48: : introducir valores | C48: 0 | X48: 0 | Z48: zz nueva solución: fase : introducir valores | AA48: 40 | BA48: zz nueva solución: Fase: : introducir valores | BB48: 0 | BC48: 0 | BD48: 0 | BE48: 0 | BF48: 0 | BG48: 0 | BH48: 0 | BI48: 0 | BJ48: 0 | BK48: 0 | BL48: 0 | BM48: 0 | BN48: 0 | BO48: 0 | BP48: 0 | BQ48: 0
A49: zz nueva solución | B49: : introducir valores | C49: 0 | X49: 0 | Z49: zz nueva solución: fase : introducir valores | AA49: 41 | BA49: zz nueva solución: Fase: : introducir valores | BB49: 0 | BC49: 0 | BD49: 0 | BE49: 0 | BF49: 0 | BG49: 0 | BH49: 0 | BI49: 0 | BJ49: 0 | BK49: 0 | BL49: 0 | BM49: 0 | BN49: 0 | BO49: 0 | BP49: 0 | BQ49: 0
A50: zz nueva solución | B50: : introducir valores | C50: 0 | X50: 0 | Z50: zz nueva solución: fase : introducir valores | AA50: 42 | BA50: zz nueva solución: Fase: : introducir valores | BB50: 0 | BC50: 0 | BD50: 0 | BE50: 0 | BF50: 0 | BG50: 0 | BH50: 0 | BI50: 0 | BJ50: 0 | BK50: 0 | BL50: 0 | BM50: 0 | BN50: 0 | BO50: 0 | BP50: 0 | BQ50: 0
A51: zz nueva solución | B51: : introducir valores | C51: 0 | X51: 0 | Z51: zz nueva solución: fase : introducir valores | AA51: 43 | BA51: zz nueva solución: Fase: : introducir valores | BB51: 0 | BC51: 0 | BD51: 0 | BE51: 0 | BF51: 0 | BG51: 0 | BH51: 0 | BI51: 0 | BJ51: 0 | BK51: 0 | BL51: 0 | BM51: 0 | BN51: 0 | BO51: 0 | BP51: 0 | BQ51: 0
A52: zz nueva solución | B52: : introducir valores | C52: 0 | X52: 0 | Z52: zz nueva solución: fase : introducir valores | AA52: 44 | BA52: zz nueva solución: Fase: : introducir valores | BB52: 0 | BC52: 0 | BD52: 0 | BE52: 0 | BF52: 0 | BG52: 0 | BH52: 0 | BI52: 0 | BJ52: 0 | BK52: 0 | BL52: 0 | BM52: 0 | BN52: 0 | BO52: 0 | BP52: 0 | BQ52: 0
A53: zz nueva solución | B53: : introducir valores | C53: 0 | X53: 0 | Z53: zz nueva solución: fase : introducir valores | AA53: 45 | BA53: zz nueva solución: Fase: : introducir valores | BB53: 0 | BC53: 0 | BD53: 0 | BE53: 0 | BF53: 0 | BG53: 0 | BH53: 0 | BI53: 0 | BJ53: 0 | BK53: 0 | BL53: 0 | BM53: 0 | BN53: 0 | BO53: 0 | BP53: 0 | BQ53: 0
A54: zz nueva solución | B54: : introducir valores | C54: 0 | X54: 0 | Z54: zz nueva solución: fase : introducir valores | AA54: 46 | BA54: zz nueva solución: Fase: : introducir valores | BB54: 0 | BC54: 0 | BD54: 0 | BE54: 0 | BF54: 0 | BG54: 0 | BH54: 0 | BI54: 0 | BJ54: 0 | BK54: 0 | BL54: 0 | BM54: 0 | BN54: 0 | BO54: 0 | BP54: 0 | BQ54: 0
A55: zz nueva solución | B55: : introducir valores | C55: 0 | X55: 0 | Z55: zz nueva solución: fase : introducir valores | AA55: 47 | BA55: zz nueva solución: Fase: : introducir valores | BB55: 0 | BC55: 0 | BD55: 0 | BE55: 0 | BF55: 0 | BG55: 0 | BH55: 0 | BI55: 0 | BJ55: 0 | BK55: 0 | BL55: 0 | BM55: 0 | BN55: 0 | BO55: 0 | BP55: 0 | BQ55: 0
A56: zz nueva solución | B56: : introducir valores | C56: 0 | X56: 0 | Z56: zz nueva solución: fase : introducir valores | AA56: 48 | BA56: zz nueva solución: Fase: : introducir valores | BB56: 0 | BC56: 0 | BD56: 0 | BE56: 0 | BF56: 0 | BG56: 0 | BH56: 0 | BI56: 0 | BJ56: 0 | BK56: 0 | BL56: 0 | BM56: 0 | BN56: 0 | BO56: 0 | BP56: 0 | BQ56: 0
A57: zz nueva solución | B57: : introducir valores | C57: 0 | X57: 0 | Z57: zz nueva solución: fase : introducir valores | AA57: 49 | BA57: zz nueva solución: Fase: : introducir valores | BB57: 0 | BC57: 0 | BD57: 0 | BE57: 0 | BF57: 0 | BG57: 0 | BH57: 0 | BI57: 0 | BJ57: 0 | BK57: 0 | BL57: 0 | BM57: 0 | BN57: 0 | BO57: 0 | BP57: 0 | BQ57: 0
A58: zz nueva solución | B58: : introducir valores | C58: 0 | X58: 0 | Z58: zz nueva solución: fase : introducir valores | AA58: 50 | BA58: zz nueva solución: Fase: : introducir valores | BB58: 0 | BC58: 0 | BD58: 0 | BE58: 0 | BF58: 0 | BG58: 0 | BH58: 0 | BI58: 0 | BJ58: 0 | BK58: 0 | BL58: 0 | BM58: 0 | BN58: 0 | BO58: 0 | BP58: 0 | BQ58: 0

Sheet Calcolo
B1: Cálculo | F1: ?
J2: Guía rápida de inicio | O2: Conversor de unidades (ppm>mM)
J4: Soluciónes nutritivas | O4: Fertilizantes y ácidos
J6: Informe | O6: Entrada
B8: CALCULO MANUAL | BA8: N
F9: HCO3-(mE) | G9: N-NO3 | H9: N-NH4 | I9: P | J9: K | K9: Ca | L9: Mg | M9: Na | N9: S-SO4 | O9: Cl | P9: Fe | Q9: B | R9: Cu | S9: Zn | T9: Mn | U9: Mo | BA9: S
B10: AGUA DE RIEGO (mmol/L) | F10: =Parametri!C18 -> 2.25 | G10: =Parametri!D18 -> 0.66 | H10: =Parametri!E18 -> 0 | I10: =Parametri!F18 -> 0.01 | J10: =Parametri!G18 -> 0.08 | K10: =Parametri!H18 -> 2.4 | L10: =Parametri!I18 -> 1.89 | M10: =Parametri!J18 -> 0.47 | N10: =Parametri!K18 -> 1.59 | O10: =Parametri!L18 -> 2.99 | P10: =Parametri!M18 -> 3.6 | Q10: =Parametri!N18 -> 20.4 | R10: =Parametri!O18 -> 0 | S10: =Parametri!P18 -> 0 | T10: =Parametri!Q18 -> 1.6 | U10: =Parametri!R18 -> 0
B11: SOLUCION NUTRITIVA CONSIGNA (mmol/L) | F11: =F10-(Parametri!$C$18/(1+10^(Parametri!$B$42-6.35))) -> 1.317372027 | G11: =Parametri!C48 -> 8 | H11: =Parametri!D48 -> 1.5 | I11: =Parametri!E48 -> 1 | J11: =Parametri!F48 -> 3 | K11: =Parametri!G48 -> 2.5 | L11: =Parametri!H48 -> 1.9 | M11: =Parametri!I48 -> 0.47 | N11: =Parametri!J48 -> 2 | O11: =Parametri!K48 -> 2.99 | P11: =Parametri!L48 -> 10 | Q11: =Parametri!M48 -> 20.4 | R11: =Parametri!N48 -> 0.05 | S11: =Parametri!O48 -> 0.05 | T11: =Parametri!P48 -> 4.6 | U11: =Parametri!Q48 -> 0.4
B12: SOLUCION NUTRITIVA CALCULADA (mmol/L) | F12: =F10-((F17*'Acidi & concimi'!G10*('Acidi & concimi'!I10/100/14.007*1000))+(F18*'Acidi & concimi'!G11*('Acidi & concimi'!K11*0.4365/100/30.974*1000))+(F19*'Acidi & concimi'!G12*('Acidi & concimi'!P12*0.4005/100/16.032*1000))+(F20*'Acidi & concimi'!G13*('Acidi & concimi'!Q13/100/35.453*1000))) -> 1.317372027 | G12: =SUM(G17:G71)+G10 -> 8 | H12: 1.5 | I12: 1 | J12: 6.636543215 | K12: 2.5 | L12: 1.9 | M12: 0.47 | N12: 1.972924551 | O12: 3.089877574 | P12: 10 | Q12: 20.90917379 | R12: 0.01730630031 | S12: 0.02523283997 | T12: 4.602772255 | U12: 0.2292476049
B13: DIFERENCIA (mmol/L) | F13: =-F12+F11 -> 0 | G13: =G12-G11 -> 0 | H13: 0 | I13: 0 | J13: 3.636543215 | K13: 0 | L13: 0 | M13: 0 | N13: -0.02707544913 | O13: 0.0998775741 | P13: 0 | Q13: 0.5091737892 | R13: -0.03269369969 | S13: =S12-S11 -> -0.02476716003 | T13: =T12-T11 -> 0.002772255047 | U13: =U12-U11 -> -0.1707523951
B15: 1) Neutralización de carbonatos | G15: =IF((F$13<-0.01),"¡Necesita ácido!",IF((F$13>0.01),"Reducir el aporte de ácidos","OK")) -> OK
C16: Unit | D16: Recomen-dación | F16: Entrada
A17: S | B17: ='Acidi & concimi'!B10 -> Ácido nítrico | C17: ml/L | D17: =-F13/('Acidi & concimi'!I10/100/14.007*1000)/'Acidi & concimi'!G10 -> 0 | E17: =IF(A17="S",IF(A18="S",IF(A19="S",IF(D17>0,D17/3,0),IF(D17>0,D17/2,0)),IF(A19="S",IF(D17>0,D17/2,0),IF(D17>0,D17,0))),0) -> 0 | F17: 0.06503105954 | G17: =$F17*'Acidi & concimi'!G10*'Acidi & concimi'!AI10*1000 -> 0.932627973
A18: N | B18: ='Acidi & concimi'!B11 -> Ácido fosfórico | C18: ml/L | D18: =-F13/('Acidi & concimi'!K11*0.4365/100/30.974*1000)/'Acidi & concimi'!G11 -> 0 | E18: =IF(A18="S",IF(A19="S",IF(A20="S",IF(D18>0,D18/3,0),IF(D18>0,D18/2,0)),IF(A20="S",IF(D18>0,D18/2,0),IF(D18>0,D18,0))),0) -> 0 | F18: 0 | I18: =$F18*'Acidi & concimi'!G11*'Acidi & concimi'!AK11*1000 -> 0
A19: N | B19: ='Acidi & concimi'!B12 -> Ácido sulfúrico | C19: ml/L | D19: =-F13/('Acidi & concimi'!P12*0.4005/100/16.032*1000)/'Acidi & concimi'!G12 -> 0 | E19: =IF(A19="S",IF(A20="S",IF(A21="S",IF(D19>0,D19/3,0),IF(D19>0,D19/2,0)),IF(A21="S",IF(D19>0,D19/2,0),IF(D19>0,D19,0))),0) -> 0 | F19: 0 | N19: =$F19*'Acidi & concimi'!G12*'Acidi & concimi'!AP12*1000 -> 0
B20: ='Acidi & concimi'!B13 -> Ácido clorhídrico | C20: ml/L | D20: =-F13/('Acidi & concimi'!Q13/100/35.453*1000)/'Acidi & concimi'!G13 -> 0 | E20: =IF(A20="S",IF(A21="S",IF(A22="S",D20/3,D20/2),IF(A22="S",D20/2,D20)),0) -> 0 | O20: =$F20*'Acidi & concimi'!G13*'Acidi & concimi'!AQ13*1000 -> 0
B23: Fertilizante pre-mezclado
B24: ='Acidi & concimi'!B16 -> Fertilizante soluble 1 | C24: mg/L | D24: =-$I$13/'Acidi & concimi'!AK16 ->  | G24: =$F24*'Acidi & concimi'!AI16 -> 0 | H24: =$F24*'Acidi & concimi'!AJ16 -> 0 | I24: =$F24*'Acidi & concimi'!AK16 -> 0 | J24: =$F24*'Acidi & concimi'!AL16 -> 0 | K24: =$F24*'Acidi & concimi'!AM16 -> 0 | L24: =$F24*'Acidi & concimi'!AN16 -> 0 | M24: =$F24*'Acidi & concimi'!AO16 -> 0 | N24: =$F24*'Acidi & concimi'!AP16 -> 0 | O24: =$F24*'Acidi & concimi'!AQ16 -> 0 | P24: =$F24*'Acidi & concimi'!AR16*1000 -> 0 | Q24: =$F24*'Acidi & concimi'!AS16*1000 -> 0 | R24: =$F24*'Acidi & concimi'!AT16*1000 -> 0 | S24: =$F24*'Acidi & concimi'!AU16*1000 -> 0 | T24: =$F24*'Acidi & concimi'!AV16*1000 -> 0 | U24: =$F24*'Acidi & concimi'!AW16*1000 -> 0
B25: ='Acidi & concimi'!B17 -> Fertilizante soluble 2 | C25: mg/L | D25: =-$I$13/'Acidi & concimi'!AK17 ->  | G25: =$F25*'Acidi & concimi'!AI17 -> 0 | H25: =$F25*'Acidi & concimi'!AJ17 -> 0 | I25: =$F25*'Acidi & concimi'!AK17 -> 0 | J25: =$F25*'Acidi & concimi'!AL17 -> 0 | K25: =$F25*'Acidi & concimi'!AM17 -> 0 | L25: =$F25*'Acidi & concimi'!AN17 -> 0 | M25: =$F25*'Acidi & concimi'!AO17 -> 0 | N25: =$F25*'Acidi & concimi'!AP17 -> 0 | O25: =$F25*'Acidi & concimi'!AQ17 -> 0 | P25: =$F25*'Acidi & concimi'!AR17*1000 -> 0 | Q25: =$F25*'Acidi & concimi'!AS17*1000 -> 0 | R25: =$F25*'Acidi & concimi'!AT17*1000 -> 0 | S25: =$F25*'Acidi & concimi'!AU17*1000 -> 0 | T25: =$F25*'Acidi & concimi'!AV17*1000 -> 0 | U25: =$F25*'Acidi & concimi'!AW17*1000 -> 0
B26: ='Acidi & concimi'!B18 -> Fertilizante soluble 3 | C26: mg/L | D26: =-$I$13/'Acidi & concimi'!AK18 ->  | G26: =$F26*'Acidi & concimi'!AI18 -> 0 | H26: =$F26*'Acidi & concimi'!AJ18 -> 0 | I26: =$F26*'Acidi & concimi'!AK18 -> 0 | J26: =$F26*'Acidi & concimi'!AL18 -> 0 | K26: =$F26*'Acidi & concimi'!AM18 -> 0 | L26: =$F26*'Acidi & concimi'!AN18 -> 0 | M26: =$F26*'Acidi & concimi'!AO18 -> 0 | N26: =$F26*'Acidi & concimi'!AP18 -> 0 | O26: =$F26*'Acidi & concimi'!AQ18 -> 0 | P26: =$F26*'Acidi & concimi'!AR18*1000 -> 0 | Q26: =$F26*'Acidi & concimi'!AS18*1000 -> 0 | R26: =$F26*'Acidi & concimi'!AT18*1000 -> 0 | S26: =$F26*'Acidi & concimi'!AU18*1000 -> 0 | T26: =$F26*'Acidi & concimi'!AV18*1000 -> 0 | U26: =$F26*'Acidi & concimi'!AW18*1000 -> 0
B28: 3) ) Calcio | F28: =IF((K$10-K$11)>0.1,"¡High calcium content in the water!!",IF((K$13<-0.10501),"¡Añadir más sales de calcio!",IF((K$13>0.105),"Reducir las sales de calcio","OK"))) -> OK
A29: S | B29: ='Acidi & concimi'!B20 -> Nitrato cálcico | C29: mg/L | D29: =-$K$13/'Acidi & concimi'!AM20 -> 0 | E29: =IF(A29="S",IF(A30="s",IF(A31="S",IF(D29>0,D29/3,0),IF(D29>0,D29/2,0)),IF(A31="S",IF(D29>0,D29/2,0),IF(D29>0,D29,0))),0) -> 0 | F29: 10.77998924 | G29: =$F29*'Acidi & concimi'!AI20 -> 0.1100548627 | H29: =$F29*'Acidi & concimi'!AJ20 -> 0.01000498752 | I29: =$F29*'Acidi & concimi'!AK20 -> 0 | J29: =$F29*'Acidi & concimi'!AL20 -> 0 | K29: =$F29*'Acidi & concimi'!AM20 -> 0.05 | L29: =$F29*'Acidi & concimi'!AN20 -> 0 | M29: =$F29*'Acidi & concimi'!AO20 -> 0 | N29: =$F29*'Acidi & concimi'!AP20 -> 0 | O29: =$F29*'Acidi & concimi'!AQ20 -> 0 | P29: =$F29*'Acidi & concimi'!AR20*1000 -> 0 | Q29: =$F29*'Acidi & concimi'!AS20*1000 -> 0 | R29: =$F29*'Acidi & concimi'!AT20*1000 -> 0 | S29: =$F29*'Acidi & concimi'!AU20*1000 -> 0 | T29: =$F29*'Acidi & concimi'!AV20*1000 -> 0 | U29: =$F29*'Acidi & concimi'!AW20*1000 -> 0
A30: N | B30: ='Acidi & concimi'!B21 -> Nitrato cálcico puro | C30: mg/L | D30: =-$K$13/'Acidi & concimi'!AM21 -> 0 | E30: =IF(A30="S",IF(A31="S",IF(D30>0,D30/2,0),IF(D30>0,D30,0)),0) -> 0 | F30: 0 | G30: =$F30*'Acidi & concimi'!AI21 -> 0 | H30: =$F30*'Acidi & concimi'!AJ21 -> 0 | I30: =$F30*'Acidi & concimi'!AK21 -> 0 | J30: =$F30*'Acidi & concimi'!AL21 -> 0 | K30: =$F30*'Acidi & concimi'!AM21 -> 0 | L30: =$F30*'Acidi & concimi'!AN21 -> 0 | M30: =$F30*'Acidi & concimi'!AO21 -> 0 | N30: =$F30*'Acidi & concimi'!AP21 -> 0 | O30: =$F30*'Acidi & concimi'!AQ21 -> 0 | P30: =$F30*'Acidi & concimi'!AR21*1000 -> 0 | Q30: =$F30*'Acidi & concimi'!AS21*1000 -> 0 | R30: =$F30*'Acidi & concimi'!AT21*1000 -> 0 | S30: =$F30*'Acidi & concimi'!AU21*1000 -> 0 | T30: =$F30*'Acidi & concimi'!AV21*1000 -> 0 | U30: =$F30*'Acidi & concimi'!AW21*1000 -> 0
A31: S | B31: ='Acidi & concimi'!B22 -> Cloruro cálcico | C31: mg/L | D31: =-$K$13/'Acidi & concimi'!AM22 -> 0 | E31: =IF(A31="S",IF(D31>0,D31,0),0) -> 0 | F31: 5.550093471 | G31: =$F31*'Acidi & concimi'!AI22 -> 0 | H31: =$F31*'Acidi & concimi'!AJ22 -> 0 | I31: =$F31*'Acidi & concimi'!AK22 -> 0 | J31: =$F31*'Acidi & concimi'!AL22 -> 0 | K31: =$F31*'Acidi & concimi'!AM22 -> 0.05 | L31: =$F31*'Acidi & concimi'!AN22 -> 0 | M31: =$F31*'Acidi & concimi'!AO22 -> 0 | N31: =$F31*'Acidi & concimi'!AP22 -> 0 | O31: =$F31*'Acidi & concimi'!AQ22 -> 0.0998775741 | P31: =$F31*'Acidi & concimi'!AR22*1000 -> 0 | Q31: =$F31*'Acidi & concimi'!AS22*1000 -> 0 | R31: =$F31*'Acidi & concimi'!AT22*1000 -> 0 | S31: =$F31*'Acidi & concimi'!AU22*1000 -> 0 | T31: =$F31*'Acidi & concimi'!AV22*1000 -> 0 | U31: =$F31*'Acidi & concimi'!AW22*1000 -> 0
B33: 4) Amonio | F33: =IF((H$10-H$11)>1,"Acqua troppo ricca di ammonio!!",IF((H$13<-0.10501),"Necesita añadir sales de amonio",IF((H$13>0.105),"Reducir sales de amonio","OK"))) -> OK
A34: N | B34: ='Acidi & concimi'!B24 -> Nitrato amónico | C34: mg/L | D34: =-$H$13/'Acidi & concimi'!AJ24 -> 0 | E34: =IF(A34="S",IF(A35="s",IF(A36="S",IF(D34>0,D34/3,0),IF(D34>0,D34/2,0)),IF(A36="S",IF(D34>0,D34/2,0),IF(D34>0,D34,0))),0) -> 0 | F34: 0 | G34: =$F34*'Acidi & concimi'!AI24 -> 0 | H34: =$F34*'Acidi & concimi'!AJ24 -> 0 | I34: =$F34*'Acidi & concimi'!AK24 -> 0 | J34: =$F34*'Acidi & concimi'!AL24 -> 0 | K34: =$F34*'Acidi & concimi'!AM24 -> 0 | L34: =$F34*'Acidi & concimi'!AN24 -> 0 | M34: =$F34*'Acidi & concimi'!AO24 -> 0 | N34: =$F34*'Acidi & concimi'!AP24 -> 0 | O34: =$F34*'Acidi & concimi'!AQ24 -> 0 | P34: =$F34*'Acidi & concimi'!AR24*1000 -> 0 | Q34: =$F34*'Acidi & concimi'!AS24*1000 -> 0 | R34: =$F34*'Acidi & concimi'!AT24*1000 -> 0 | S34: =$F34*'Acidi & concimi'!AU24*1000 -> 0 | T34: =$F34*'Acidi & concimi'!AV24*1000 -> 0 | U34: =$F34*'Acidi & concimi'!AW18*1000 -> 0
A35: S | B35: ='Acidi & concimi'!B25 -> Sulfato amónico | C35: mg/L | D35: =-$H$13/'Acidi & concimi'!AJ25 -> 0 | E35: =IF(A35="S",IF(A36="S",IF(D35>0,D35/2,0),IF(D35>0,D35,0)),0) -> 0 | F35: 49.2225475 | G35: =$F35*'Acidi & concimi'!AI25 -> 0 | H35: =$F35*'Acidi & concimi'!AJ25 -> 0.7449975062 | I35: =$F35*'Acidi & concimi'!AK25 -> 0 | J35: =$F35*'Acidi & concimi'!AL25 -> 0 | K35: =$F35*'Acidi & concimi'!AM25 -> 0 | L35: =$F35*'Acidi & concimi'!AN25 -> 0 | M35: =$F35*'Acidi & concimi'!AO25 -> 0 | N35: =$F35*'Acidi & concimi'!AP25 -> 0.3728607973 | O35: =$F35*'Acidi & concimi'!AQ25 -> 0 | P35: =$F35*'Acidi & concimi'!AR24*1000 -> 0 | Q35: =$F35*'Acidi & concimi'!AS24*1000 -> 0 | R35: =$F35*'Acidi & concimi'!AT24*1000 -> 0 | S35: =$F35*'Acidi & concimi'!AU24*1000 -> 0 | T35: =$F35*'Acidi & concimi'!AV24*1000 -> 0 | U35: =$F35*'Acidi & concimi'!AW24*1000 -> 0
A36: S | B36: ='Acidi & concimi'!B26 -> Fosfato monoamónico | C36: mg/L | D36: =-$H$13/'Acidi & concimi'!AJ26 -> 0 | E36: =IF(A36="S",IF(D36>0,D36,0),0) -> 0 | F36: 85.53426287 | G36: =$F36*'Acidi & concimi'!AI26 -> 0 | H36: =$F36*'Acidi & concimi'!AJ26 -> 0.7449975062 | I36: =$F36*'Acidi & concimi'!AK26 -> 0.7423492551 | J36: =$F36*'Acidi & concimi'!AL26 -> 0 | K36: =$F36*'Acidi & concimi'!AM26 -> 0 | L36: =$F36*'Acidi & concimi'!AN26 -> 0 | M36: =$F36*'Acidi & concimi'!AO26 -> 0 | N36: =$F36*'Acidi & concimi'!AP26 -> 0 | O36: =$F36*'Acidi & concimi'!AQ26 -> 0 | P36: =$F36*'Acidi & concimi'!AR25*1000 -> 0 | Q36: =$F36*'Acidi & concimi'!AS25*1000 -> 0 | R36: =$F36*'Acidi & concimi'!AT25*1000 -> 0 | S36: =$F36*'Acidi & concimi'!AU25*1000 -> 0 | T36: =$F36*'Acidi & concimi'!AV25*1000 -> 0 | U36: =$F36*'Acidi & concimi'!AW25*1000 -> 0
B38: 5) Fósforo | F38: =IF((I$10-I$11)>1,"Acqua troppo ricca di fosforo!!",IF((I$13<-0.10501),"¡Necesita añadir sales de fósforo!",IF((($I$13)^2)>0.011027,"Reducir sales de fósforo, no usar ácido fosfórico","OK"))) -> OK
A39: S | B39: ='Acidi & concimi'!B28 -> Fosfato monopotásico | C39: mg/L | D39: =-$I$13/'Acidi & concimi'!AK28 -> 0 | E39: =IF(A39="S",IF(D39>0,D39,0),0) -> 0 | F39: 33.6729905 | G39: =$F39*'Acidi & concimi'!AI28 -> 0 | H39: =$F39*'Acidi & concimi'!AJ28 -> 0 | I39: =$F39*'Acidi & concimi'!AK28 -> 0.2476507449 | J39: =$F39*'Acidi & concimi'!AL28 -> 0.2473199338 | K39: =$F39*'Acidi & concimi'!AM28 -> 0 | L39: =$F39*'Acidi & concimi'!AN28 -> 0 | M39: =$F39*'Acidi & concimi'!AO28 -> 0 | N39: =$F39*'Acidi & concimi'!AP28 -> 0 | O39: =$F39*'Acidi & concimi'!AQ28 -> 0 | P39: =$F39*'Acidi & concimi'!AR28*1000 -> 0 | Q39: =$F39*'Acidi & concimi'!AS28*1000 -> 0 | R39: =$F39*'Acidi & concimi'!AT28*1000 -> 0 | S39: =$F39*'Acidi & concimi'!AU28*1000 -> 0 | T39: =$F39*'Acidi & concimi'!AV28*1000 -> 0 | U39: =$F39*'Acidi & concimi'!AW28*1000 -> 0
B41: 6) Magnesio | F41: =IF((L$10-L$11)>1,"Acqua troppo ricca di Mg!!",IF((L$13<-0.10501),"¡Necesita añadir sales de magnesio!",IF((L$13>0.105),"Reducir sales de magnesio","OK"))) -> OK
A42: S | B42: ='Acidi & concimi'!B30 -> Sulfato de magnesio | C42: mg/L | D42: =-$L$13/'Acidi & concimi'!AN30 -> 0 | E42: =IF(A42="S",IF(A43="S",IF(D42>0,D42/2,0),IF(D42>0,D42,0)),0) -> 0 | F42: 2.535748928 | G42: =$F42*'Acidi & concimi'!AI30 -> 0 | H42: =$F42*'Acidi & concimi'!AJ30 -> 0 | I42: =$F42*'Acidi & concimi'!AK30 -> 0 | J42: =$F42*'Acidi & concimi'!AL30 -> 0 | K42: =$F42*'Acidi & concimi'!AM30 -> 0 | L42: =$F42*'Acidi & concimi'!AN30 -> 0.01 | M42: =$F42*'Acidi & concimi'!AO30 -> 0 | N42: =$F42*'Acidi & concimi'!AP30 -> 0.01006375356 | O42: =$F42*'Acidi & concimi'!AQ30 -> 0 | P42: =$F42*'Acidi & concimi'!AR30*1000 -> 0 | Q42: =$F42*'Acidi & concimi'!AS30*1000 -> 0 | R42: =$F42*'Acidi & concimi'!AT30*1000 -> 0 | S42: =$F42*'Acidi & concimi'!AU30*1000 -> 0 | T42: =$F42*'Acidi & concimi'!AV30*1000 -> 0 | U42: =$F42*'Acidi & concimi'!AW30*1000 -> 0
A43: N | B43: ='Acidi & concimi'!B31 -> Nitrato de magnesio | C43: mg/L | D43: =-$L$13/'Acidi & concimi'!AN31 -> 0 | E43: =IF(A43="S",IF(D43>0,D43,0),0) -> 0 | F43: 0 | G43: =$F43*'Acidi & concimi'!AI31 -> 0 | H43: =$F43*'Acidi & concimi'!AJ31 -> 0 | I43: =$F43*'Acidi & concimi'!AK31 -> 0 | J43: =$F43*'Acidi & concimi'!AL31 -> 0 | K43: =$F43*'Acidi & concimi'!AM31 -> 0 | L43: =$F43*'Acidi & concimi'!AN31 -> 0 | M43: =$F43*'Acidi & concimi'!AO31 -> 0 | N43: =$F43*'Acidi & concimi'!AP31 -> 0 | O43: =$F43*'Acidi & concimi'!AQ31 -> 0 | P43: =$F43*'Acidi & concimi'!AR31*1000 -> 0 | Q43: =$F43*'Acidi & concimi'!AS31*1000 -> 0 | R43: =$F43*'Acidi & concimi'!AT31*1000 -> 0 | S43: =$F43*'Acidi & concimi'!AU31*1000 -> 0 | T43: =$F43*'Acidi & concimi'!AV31*1000 -> 0 | U43: =$F43*'Acidi & concimi'!AW31*1000 -> 0
B45: 7) Nitrato | F45: =IF((G$10-G$11)>0.5,"Acqua troppo ricca di nitrati!!",IF((G$13<-0.20501),"¡Necesita añadir nitratos!",IF((G$13>0.205),"Reducir nitratos o usar ácido sulfúrico","OK"))) -> OK
A46: S | B46: ='Acidi & concimi'!B33 -> Nitrato potásico | C46: mg/L | D46: =-$G$13/'Acidi & concimi'!AI33 -> 0 | E46: =IF(A46="S",IF(D46>0,D46,0),0) -> 0 | F46: 639.1776922 | G46: =$F46*'Acidi & concimi'!AI33 -> 6.297317164 | H46: =$F46*'Acidi & concimi'!AJ33 -> 0 | I46: =$F46*'Acidi & concimi'!AK33 -> 0 | J46: =$F46*'Acidi & concimi'!AL33 -> 6.309223281 | K46: =$F46*'Acidi & concimi'!AM33 -> 0 | L46: =$F46*'Acidi & concimi'!AN33 -> 0 | M46: =$F46*'Acidi & concimi'!AO33 -> 0 | N46: =$F46*'Acidi & concimi'!AP33 -> 0 | O46: =$F46*'Acidi & concimi'!AQ33 -> 0 | P46: =$F46*'Acidi & concimi'!AR33*1000 -> 0 | Q46: =$F46*'Acidi & concimi'!AS33*1000 -> 0 | R46: =$F46*'Acidi & concimi'!AT33*1000 -> 0 | S46: =$F46*'Acidi & concimi'!AU33*1000 -> 0 | T46: =$F46*'Acidi & concimi'!AV33*1000 -> 0 | U46: =$F46*'Acidi & concimi'!AW33*1000 -> 0
B48: 8) Potasio | F48: =IF((J$10-J$11)>0.1,"Acqua troppo ricca di potassio!!",IF((J$13<-0.10501),"¡Necesita añadir sales de potasio!",IF((J$13>0.105),"Reducir sales de potasio, use más nitrato amónico o ácido nítrico","OK"))) -> Reducir sales de potasio, use más nitrato amónico o ácido nítrico
A49: N | B49: ='Acidi & concimi'!B34 -> Sulfato potásico | C49: mg/L | D49: =-$J$13/'Acidi & concimi'!AL34 -> -329.1294046 | E49: =IF(A49="S",IF(A50="S",IF(D49>0,D49/2,0),IF(D49>0,D49,0)),0) -> 0 | F49: 0 | G49: =$F49*'Acidi & concimi'!AI34 -> 0 | H49: =$F49*'Acidi & concimi'!AJ34 -> 0 | I49: =$F49*'Acidi & concimi'!AK34 -> 0 | J49: =$F49*'Acidi & concimi'!AL34 -> 0 | K49: =$F49*'Acidi & concimi'!AM34 -> 0 | L49: =$F49*'Acidi & concimi'!AN34 -> 0 | M49: =$F49*'Acidi & concimi'!AO34 -> 0 | N49: =$F49*'Acidi & concimi'!AP34 -> 0 | O49: =$F49*'Acidi & concimi'!AQ34 -> 0 | P49: =$F49*'Acidi & concimi'!AR34*1000 -> 0 | Q49: =$F49*'Acidi & concimi'!AS34*1000 -> 0 | R49: =$F49*'Acidi & concimi'!AT34*1000 -> 0 | S49: =$F49*'Acidi & concimi'!AU34*1000 -> 0 | T49: =$F49*'Acidi & concimi'!AV34*1000 -> 0 | U49: =$F49*'Acidi & concimi'!AW34*1000 -> 0
A50: N | B50: ='Acidi & concimi'!B35 -> Cloruro potásico | C50: mg/L | D50: =-$J$13/'Acidi & concimi'!AL35 -> -280.8391067 | E50: =IF(A50="S",IF(D50>0,D50,0),0) -> 0 | F50: 0 | G50: =$F50*'Acidi & concimi'!AI35 -> 0 | H50: =$F50*'Acidi & concimi'!AJ35 -> 0 | I50: =$F50*'Acidi & concimi'!AK35 -> 0 | J50: =$F50*'Acidi & concimi'!AL35 -> 0 | K50: =$F50*'Acidi & concimi'!AM35 -> 0 | L50: =$F50*'Acidi & concimi'!AN35 -> 0 | M50: =$F50*'Acidi & concimi'!AO35 -> 0 | N50: =$F50*'Acidi & concimi'!AP35 -> 0 | O50: =$F50*'Acidi & concimi'!AQ35 -> 0 | P50: =$F50*'Acidi & concimi'!AR35*1000 -> 0 | Q50: =$F50*'Acidi & concimi'!AS35*1000 -> 0 | R50: =$F50*'Acidi & concimi'!AT35*1000 -> 0 | S50: =$F50*'Acidi & concimi'!AU35*1000 -> 0 | T50: =$F50*'Acidi & concimi'!AV35*1000 -> 0 | U50: =$F50*'Acidi & concimi'!AW35*1000 -> 0
B52: 9) Hierro | F52: =IF((P$10-P$11)>1,"Acqua troppo ricca di ferro!!",IF((P$13<-1.01),"¡Necesita añadir sales de hierro!",IF((P$13>1.0101),"Reducir sales de hierro","OK"))) -> OK
A53: S | B53: ='Acidi & concimi'!B37 -> Mix micro AZ | C53: mg/L | D53: =-$P$13/'Acidi & concimi'!AR37/1000 -> 0 | E53: =IF(A53="S",IF(A54="s",IF(A55="S",IF(D53>0,D53/3,0),IF(D53>0,D53/2,0)),IF(A55="S",IF(D53>0,D53/2,0),IF(D53>0,D53,0))),0) -> 0 | F53: 5.499076923 | G53: =$F53*'Acidi & concimi'!AI37 -> 0 | H53: =$F53*'Acidi & concimi'!AJ37 -> 0 | I53: =$F53*'Acidi & concimi'!AK37 -> 0 | J53: =$F53*'Acidi & concimi'!AL37 -> 0 | K53: =$F53*'Acidi & concimi'!AM37 -> 0 | L53: =$F53*'Acidi & concimi'!AN37 -> 0 | M53: =$F53*'Acidi & concimi'!AO37 -> 0 | N53: =$F53*'Acidi & concimi'!AP37 -> 0 | O53: =$F53*'Acidi & concimi'!AQ37 -> 0 | P53: =$F53*'Acidi & concimi'!AR37*1000 -> 6.4 | Q53: =$F53*'Acidi & concimi'!AS37*1000 -> 0.5091737892 | R53: =$F53*'Acidi & concimi'!AT37*1000 -> 0.01730630031 | S53: =$F53*'Acidi & concimi'!AU37*1000 -> 0.02523283997 | T53: =$F53*'Acidi & concimi'!AV37*1000 -> 3.002772255 | U53: =$F53*'Acidi & concimi'!AW37*1000 -> 0.2292476049
A54: N | B54: ='Acidi & concimi'!B38 -> Hierro DPTA | C54: mg/L | D54: =-$P$13/'Acidi & concimi'!AR38/1000 -> 0 | E54: =IF(A54="S",IF(A55="S",IF(D54>0,D54/2,0),IF(D54>0,D54,0)),0) -> 0 | F54: 0 | G54: =$F54*'Acidi & concimi'!AI38 -> 0 | H54: =$F54*'Acidi & concimi'!AJ38 -> 0 | I54: =$F54*'Acidi & concimi'!AK38 -> 0 | J54: =$F54*'Acidi & concimi'!AL38 -> 0 | K54: =$F54*'Acidi & concimi'!AM38 -> 0 | L54: =$F54*'Acidi & concimi'!AN38 -> 0 | M54: =$F54*'Acidi & concimi'!AO38 -> 0 | N54: =$F54*'Acidi & concimi'!AP38 -> 0 | O54: =$F54*'Acidi & concimi'!AQ38 -> 0 | P54: =$F54*'Acidi & concimi'!AR38*1000 -> 0 | Q54: =$F54*'Acidi & concimi'!AS38*1000 -> 0 | R54: =$F54*'Acidi & concimi'!AT38*1000 -> 0 | S54: =$F54*'Acidi & concimi'!AU38*1000 -> 0 | T54: =$F54*'Acidi & concimi'!AV38*1000 -> 0 | U54: =$F54*'Acidi & concimi'!AW38*1000 -> 0
A55: N | B55: ='Acidi & concimi'!B39 -> Hierro EDDHA | C55: mg/L | D55: =-$P$13/'Acidi & concimi'!AR39/1000 -> 0 | E55: =IF(A55="S",IF(D55>0,D55,0),0) -> 0 | F55: 0 | G55: =$F55*'Acidi & concimi'!AI39 -> 0 | H55: =$F55*'Acidi & concimi'!AJ39 -> 0 | I55: =$F55*'Acidi & concimi'!AK39 -> 0 | J55: =$F55*'Acidi & concimi'!AL39 -> 0 | K55: =$F55*'Acidi & concimi'!AM39 -> 0 | L55: =$F55*'Acidi & concimi'!AN39 -> 0 | M55: =$F55*'Acidi & concimi'!AO39 -> 0 | N55: =$F55*'Acidi & concimi'!AP39 -> 0 | O55: =$F55*'Acidi & concimi'!AQ39 -> 0 | P55: =$F55*'Acidi & concimi'!AR39*1000 -> 0 | Q55: =$F55*'Acidi & concimi'!AS39*1000 -> 0 | R55: =$F55*'Acidi & concimi'!AT39*1000 -> 0 | S55: =$F55*'Acidi & concimi'!AU39*1000 -> 0 | T55: =$F55*'Acidi & concimi'!AV39*1000 -> 0 | U55: =$F55*'Acidi & concimi'!AW39*1000 -> 0
B57: 10) Microelementos
B58: ='Acidi & concimi'!B42 -> Microelementos MIX 1 | C58: mg/L | G58: =$F58*'Acidi & concimi'!AI42 -> 0 | H58: =$F58*'Acidi & concimi'!AJ42 -> 0 | I58: =$F58*'Acidi & concimi'!AK42 -> 0 | J58: =$F58*'Acidi & concimi'!AL42 -> 0 | K58: =$F58*'Acidi & concimi'!AM42 -> 0 | L58: =$F58*'Acidi & concimi'!AN42 -> 0 | M58: =$F58*'Acidi & concimi'!AO42 -> 0 | N58: =$F58*'Acidi & concimi'!AP42 -> 0 | O58: =$F58*'Acidi & concimi'!AQ42 -> 0 | P58: =$F58*'Acidi & concimi'!AR42*1000 -> 0 | Q58: =$F58*'Acidi & concimi'!AS42*1000 -> 0 | R58: =$F58*'Acidi & concimi'!AT42*1000 -> 0 | S58: =$F58*'Acidi & concimi'!AU42*1000 -> 0 | T58: =$F58*'Acidi & concimi'!AV42*1000 -> 0 | U58: =$F58*'Acidi & concimi'!AW42*1000 -> 0
B59: ='Acidi & concimi'!B43 -> Microelementos MIX 2 | C59: mg/L | G59: =$F59*'Acidi & concimi'!AI43 -> 0 | H59: =$F59*'Acidi & concimi'!AJ43 -> 0 | I59: =$F59*'Acidi & concimi'!AK43 -> 0 | J59: =$F59*'Acidi & concimi'!AL43 -> 0 | K59: =$F59*'Acidi & concimi'!AM43 -> 0 | L59: =$F59*'Acidi & concimi'!AN43 -> 0 | M59: =$F59*'Acidi & concimi'!AO43 -> 0 | N59: =$F59*'Acidi & concimi'!AP43 -> 0 | O59: =$F59*'Acidi & concimi'!AQ43 -> 0 | P59: =$F59*'Acidi & concimi'!AR43*1000 -> 0 | Q59: =$F59*'Acidi & concimi'!AS43*1000 -> 0 | R59: =$F59*'Acidi & concimi'!AT43*1000 -> 0 | S59: =$F59*'Acidi & concimi'!AU43*1000 -> 0 | T59: =$F59*'Acidi & concimi'!AV43*1000 -> 0 | U59: =$F59*'Acidi & concimi'!AW43*1000 -> 0
A60: N | B60: ='Acidi & concimi'!B44 -> Borax | C60: mg/L | D60: =-$Q$13/'Acidi & concimi'!AS44/1000 -> -0.04866439755 | E60: =IF(A60="S",IF(A61="S",IF(D60>0,D60/2,0),IF(D60>0,D60,0)),0) -> 0 | F60: 0 | G60: =$F60*'Acidi & concimi'!AI44 -> 0 | H60: =$F60*'Acidi & concimi'!AJ44 -> 0 | I60: =$F60*'Acidi & concimi'!AK44 -> 0 | J60: =$F60*'Acidi & concimi'!AL44 -> 0 | K60: =$F60*'Acidi & concimi'!AM44 -> 0 | L60: =$F60*'Acidi & concimi'!AN44 -> 0 | M60: =$F60*'Acidi & concimi'!AO44 -> 0 | N60: =$F60*'Acidi & concimi'!AP44 -> 0 | O60: =$F60*'Acidi & concimi'!AQ44 -> 0 | P60: =$F60*'Acidi & concimi'!AR44*1000 -> 0 | Q60: =$F60*'Acidi & concimi'!AS44*1000 -> 0 | R60: =$F60*'Acidi & concimi'!AT44*1000 -> 0 | S60: =$F60*'Acidi & concimi'!AU44*1000 -> 0 | T60: =$F60*'Acidi & concimi'!AV44*1000 -> 0 | U60: =$F60*'Acidi & concimi'!AW44*1000 -> 0
A61: N | B61: ='Acidi & concimi'!B45 -> Ácido bórico | C61: mg/L | D61: =-$Q$13/'Acidi & concimi'!AS45/1000 -> -0.0314232967 | E61: =IF(A61="S",IF(D61>0,D61,0),0) -> 0 | F61: 0 | G61: =$F61*'Acidi & concimi'!AI45 -> 0 | H61: =$F61*'Acidi & concimi'!AJ45 -> 0 | I61: =$F61*'Acidi & concimi'!AK45 -> 0 | J61: =$F61*'Acidi & concimi'!AL45 -> 0 | K61: =$F61*'Acidi & concimi'!AM45 -> 0 | L61: =$F61*'Acidi & concimi'!AN45 -> 0 | M61: =$F61*'Acidi & concimi'!AO45 -> 0 | N61: =$F61*'Acidi & concimi'!AP45 -> 0 | O61: =$F61*'Acidi & concimi'!AQ45 -> 0 | P61: =$F61*'Acidi & concimi'!AR45*1000 -> 0 | Q61: =$F61*'Acidi & concimi'!AS45*1000 -> 0 | R61: =$F61*'Acidi & concimi'!AT45*1000 -> 0 | S61: =$F61*'Acidi & concimi'!AU45*1000 -> 0 | T61: =$F61*'Acidi & concimi'!AV45*1000 -> 0 | U61: =$F61*'Acidi & concimi'!AW45*1000 -> 0
A62: N | B62: ='Acidi & concimi'!B46 -> Sulfato de cobre | C62: mg/L | D62: =-$R$13/'Acidi & concimi'!AT46/1000 -> 0.008147782805 | E62: =IF(A62="S",IF(A63="S",IF(D62>0,D62/2,0),IF(D62>0,D62,0)),0) -> 0 | F62: 0 | G62: =$F62*'Acidi & concimi'!AI46 -> 0 | H62: =$F62*'Acidi & concimi'!AJ46 -> 0 | I62: =$F62*'Acidi & concimi'!AK46 -> 0 | J62: =$F62*'Acidi & concimi'!AL46 -> 0 | K62: =$F62*'Acidi & concimi'!AM46 -> 0 | L62: =$F62*'Acidi & concimi'!AN46 -> 0 | M62: =$F62*'Acidi & concimi'!AO46 -> 0 | N62: =$F62*'Acidi & concimi'!AP46 -> 0 | O62: =$F62*'Acidi & concimi'!AQ46 -> 0 | P62: =$F62*'Acidi & concimi'!AR46*1000 -> 0 | Q62: =$F62*'Acidi & concimi'!AS46*1000 -> 0 | R62: =$F62*'Acidi & concimi'!AT46*1000 -> 0 | S62: =$F62*'Acidi & concimi'!AU46*1000 -> 0 | T62: =$F62*'Acidi & concimi'!AV46*1000 -> 0 | U62: =$F62*'Acidi & concimi'!AW46*1000 -> 0
A63: N | B63: ='Acidi & concimi'!B47 -> Cobre quelatado (EDTA) | C63: mg/L | D63: =-$R$13/'Acidi & concimi'!AT47/1000 -> 0.01385123077 | E63: =IF(A63="S",IF(D63>0,D63,0),0) -> 0 | F63: 0 | G63: =$F63*'Acidi & concimi'!AI47 -> 0 | H63: =$F63*'Acidi & concimi'!AJ47 -> 0 | I63: =$F63*'Acidi & concimi'!AK47 -> 0 | J63: =$F63*'Acidi & concimi'!AL47 -> 0 | K63: =$F63*'Acidi & concimi'!AM47 -> 0 | L63: =$F63*'Acidi & concimi'!AN47 -> 0 | M63: =$F63*'Acidi & concimi'!AO47 -> 0 | N63: =$F63*'Acidi & concimi'!AP47 -> 0 | O63: =$F63*'Acidi & concimi'!AQ47 -> 0 | P63: =$F63*'Acidi & concimi'!AR47*1000 -> 0 | Q63: =$F63*'Acidi & concimi'!AS47*1000 -> 0 | R63: =$F63*'Acidi & concimi'!AT47*1000 -> 0 | S63: =$F63*'Acidi & concimi'!AU47*1000 -> 0 | T63: =$F63*'Acidi & concimi'!AV47*1000 -> 0 | U63: =$F63*'Acidi & concimi'!AW47*1000 -> 0
A64: N | B64: ='Acidi & concimi'!B48 -> Sulfato de zinc | C64: mg/L | D64: =-$S$13/'Acidi & concimi'!AU48/1000 -> 0.007133378516 | E64: =IF(A64="S",IF(A65="S",IF(D64>0,D64/2,0),IF(D64>0,D64,0)),0) -> 0 | F64: 0 | G64: =$F64*'Acidi & concimi'!AI48 -> 0 | H64: =$F64*'Acidi & concimi'!AJ48 -> 0 | I64: =$F64*'Acidi & concimi'!AK48 -> 0 | J64: =$F64*'Acidi & concimi'!AL48 -> 0 | K64: =$F64*'Acidi & concimi'!AM48 -> 0 | L64: =$F64*'Acidi & concimi'!AN48 -> 0 | M64: =$F64*'Acidi & concimi'!AO48 -> 0 | N64: =$F64*'Acidi & concimi'!AP48 -> 0 | O64: =$F64*'Acidi & concimi'!AQ48 -> 0 | P64: =$F64*'Acidi & concimi'!AR48*1000 -> 0 | Q64: =$F64*'Acidi & concimi'!AS48*1000 -> 0 | R64: =$F64*'Acidi & concimi'!AT48*1000 -> 0 | S64: =$F64*'Acidi & concimi'!AU48*1000 -> 0 | T64: =$F64*'Acidi & concimi'!AV48*1000 -> 0 | U64: =$F64*'Acidi & concimi'!AW48*1000 -> 0
A65: N | B65: ='Acidi & concimi'!B49 -> Zinc quelatado (EDTA) | C65: mg/L | D65: =-$S$13/'Acidi & concimi'!AU49/1000 -> 0.01079517949 | E65: =IF(A65="S",IF(D65>0,D65,0),0) -> 0 | F65: 0 | G65: =$F65*'Acidi & concimi'!AI49 -> 0 | H65: =$F65*'Acidi & concimi'!AJ49 -> 0 | I65: =$F65*'Acidi & concimi'!AK49 -> 0 | J65: =$F65*'Acidi & concimi'!AL49 -> 0 | K65: =$F65*'Acidi & concimi'!AM49 -> 0 | L65: =$F65*'Acidi & concimi'!AN49 -> 0 | M65: =$F65*'Acidi & concimi'!AO49 -> 0 | N65: =$F65*'Acidi & concimi'!AP49 -> 0 | O65: =$F65*'Acidi & concimi'!AQ49 -> 0 | P65: =$F65*'Acidi & concimi'!AR49*1000 -> 0 | Q65: =$F65*'Acidi & concimi'!AS49*1000 -> 0 | R65: =$F65*'Acidi & concimi'!AT49*1000 -> 0 | S65: =$F65*'Acidi & concimi'!AU49*1000 -> 0 | T65: =$F65*'Acidi & concimi'!AV49*1000 -> 0 | U65: =$F65*'Acidi & concimi'!AW49*1000 -> 0
A66: N | B66: ='Acidi & concimi'!B50 -> Sulfato de manganeso | C66: mg/L | D66: =-$T$13/'Acidi & concimi'!AV50/1000 -> -0.0004686390533 | E66: =IF(A66="S",IF(A67="S",IF(D66>0,D66/2,0),IF(D66>0,D66,0)),0) -> 0 | F66: 0 | G66: =$F66*'Acidi & concimi'!AI50 -> 0 | H66: =$F66*'Acidi & concimi'!AJ50 -> 0 | I66: =$F66*'Acidi & concimi'!AK50 -> 0 | J66: =$F66*'Acidi & concimi'!AL50 -> 0 | K66: =$F66*'Acidi & concimi'!AM50 -> 0 | L66: =$F66*'Acidi & concimi'!AN50 -> 0 | M66: =$F66*'Acidi & concimi'!AO50 -> 0 | N66: =$F66*'Acidi & concimi'!AP50 -> 0 | O66: =$F66*'Acidi & concimi'!AQ50 -> 0 | P66: =$F66*'Acidi & concimi'!AR50*1000 -> 0 | Q66: =$F66*'Acidi & concimi'!AS50*1000 -> 0 | R66: =$F66*'Acidi & concimi'!AT50*1000 -> 0 | S66: =$F66*'Acidi & concimi'!AU50*1000 -> 0 | T66: =$F66*'Acidi & concimi'!AV50*1000 -> 0 | U66: =$F66*'Acidi & concimi'!AW50*1000 -> 0
A67: N | B67: ='Acidi & concimi'!B51 -> Quelato de manganeso | C67: mg/L | D67: =-$T$13/'Acidi & concimi'!AV51/1000 -> -0.001015384615 | E67: =IF(A67="S",IF(D67>0,D67,0),0) -> 0 | F67: 0 | G67: =$F67*'Acidi & concimi'!AI51 -> 0 | H67: =$F67*'Acidi & concimi'!AJ51 -> 0 | I67: =$F67*'Acidi & concimi'!AK51 -> 0 | J67: =$F67*'Acidi & concimi'!AL51 -> 0 | K67: =$F67*'Acidi & concimi'!AM51 -> 0 | L67: =$F67*'Acidi & concimi'!AN51 -> 0 | M67: =$F67*'Acidi & concimi'!AO51 -> 0 | N67: =$F67*'Acidi & concimi'!AP51 -> 0 | O67: =$F67*'Acidi & concimi'!AQ51 -> 0 | P67: =$F67*'Acidi & concimi'!AR51*1000 -> 0 | Q67: =$F67*'Acidi & concimi'!AS51*1000 -> 0 | R67: =$F67*'Acidi & concimi'!AT51*1000 -> 0 | S67: =$F67*'Acidi & concimi'!AU51*1000 -> 0 | T67: =$F67*'Acidi & concimi'!AV51*1000 -> 0 | U67: =$F67*'Acidi & concimi'!AW51*1000 -> 0
A68: N | B68: ='Acidi & concimi'!B52 -> Heptamolibdato de amonio | C68: mg/L | D68: =-$U$13/'Acidi & concimi'!AW52/1000 -> 0.03011708145 | E68: =IF(A68="S",IF(A69="S",IF(D68>0,D68/2,0),IF(D68>0,D68,0)),0) -> 0 | F68: 0 | G68: =$F68*'Acidi & concimi'!AI52 -> 0 | H68: =$F68*'Acidi & concimi'!AJ52 -> 0 | I68: =$F68*'Acidi & concimi'!AK52 -> 0 | J68: =$F68*'Acidi & concimi'!AL52 -> 0 | K68: =$F68*'Acidi & concimi'!AM52 -> 0 | L68: =$F68*'Acidi & concimi'!AN52 -> 0 | M68: =$F68*'Acidi & concimi'!AO52 -> 0 | N68: =$F68*'Acidi & concimi'!AP52 -> 0 | O68: =$F68*'Acidi & concimi'!AQ52 -> 0 | P68: =$F68*'Acidi & concimi'!AR52*1000 -> 0 | Q68: =$F68*'Acidi & concimi'!AS52*1000 -> 0 | R68: =$F68*'Acidi & concimi'!AT52*1000 -> 0 | S68: =$F68*'Acidi & concimi'!AU52*1000 -> 0 | T68: =$F68*'Acidi & concimi'!AV52*1000 -> 0 | U68: =$F68*'Acidi & concimi'!AW52*1000 -> 0
A69: N | B69: ='Acidi & concimi'!B53 -> Molibdato de sodio | C69: mg/L | D69: =-$U$13/'Acidi & concimi'!AW53/1000 -> 0.04126874637 | E69: =IF(A69="S",IF(D69>0,D69,0),0) -> 0 | F69: 0 | G69: =$F69*'Acidi & concimi'!AI53 -> 0 | H69: =$F69*'Acidi & concimi'!AJ53 -> 0 | I69: =$F69*'Acidi & concimi'!AK53 -> 0 | J69: =$F69*'Acidi & concimi'!AL53 -> 0 | K69: =$F69*'Acidi & concimi'!AM53 -> 0 | L69: =$F69*'Acidi & concimi'!AN53 -> 0 | M69: =$F69*'Acidi & concimi'!AO53 -> 0 | N69: =$F69*'Acidi & concimi'!AP53 -> 0 | O69: =$F69*'Acidi & concimi'!AQ53 -> 0 | P69: =$F69*'Acidi & concimi'!AR53*1000 -> 0 | Q69: =$F69*'Acidi & concimi'!AS53*1000 -> 0 | R69: =$F69*'Acidi & concimi'!AT53*1000 -> 0 | S69: =$F69*'Acidi & concimi'!AU53*1000 -> 0 | T69: =$F69*'Acidi & concimi'!AV53*1000 -> 0 | U69: =$F69*'Acidi & concimi'!AW53*1000 -> 0
B70: 11) Sodio
A71: N | B71: ='Acidi & concimi'!B55 -> Cloruro sódico | C71: mg/L | D71: =-$M$13/'Acidi & concimi'!AO55 -> 0 | E71: =IF(A71="S",IF(D71>0,D71,0),0) -> 0 | F71: 0 | G71: =$F71*'Acidi & concimi'!AI55 -> 0 | H71: =$F71*'Acidi & concimi'!AJ55 -> 0 | I71: =$F71*'Acidi & concimi'!AK55 -> 0 | J71: =$F71*'Acidi & concimi'!AL55 -> 0 | K71: =$F71*'Acidi & concimi'!AM55 -> 0 | L71: =$F71*'Acidi & concimi'!AN55 -> 0 | M71: =$F71*'Acidi & concimi'!AO55 -> 0 | N71: =$F71*'Acidi & concimi'!AP55 -> 0 | O71: =$F71*'Acidi & concimi'!AQ55 -> 0 | P71: =$F71*'Acidi & concimi'!AR55*1000 -> 0 | Q71: =$F71*'Acidi & concimi'!AS55*1000 -> 0 | R71: =$F71*'Acidi & concimi'!AT55*1000 -> 0 | S71: =$F71*'Acidi & concimi'!AU55*1000 -> 0 | T71: =$F71*'Acidi & concimi'!AV55*1000 -> 0 | U71: =$F71*'Acidi & concimi'!AW55*1000 -> 0
B73: Coste total de las soluciones madre | H73: =((F17*'Acidi & concimi'!H10+Calcolo!F18*'Acidi & concimi'!H11+Calcolo!F19*'Acidi & concimi'!H12+Calcolo!F20*'Acidi & concimi'!H13)/1000+(Calcolo!F24*'Acidi & concimi'!H16+Calcolo!F25*'Acidi & concimi'!H17+Calcolo!F26*'Acidi & concimi'!H18+Calcolo!F42*'Acidi & concimi'!H30+Calcolo!F43*'Acidi & concimi'!H31+Calcolo!F30*'Acidi & concimi'!H20+Calcolo!F29*'Acidi & concimi'!H21+Calcolo!F31*'Acidi & concimi'!H22+Calcolo!F34*'Acidi & concimi'!H24+Calcolo!F35*'Acidi & concimi'!H25+Calcolo!F36*'Acidi & concimi'!H26+Calcolo!F39*'Acidi & concimi'!H28+Calcolo!F46*'Acidi & concimi'!H33+Calcolo!F49*'Acidi & concimi'!H34+Calcolo!F50*'Acidi & concimi'!H35+AO85)/1000000)*(Parametri!I27*Parametri!I28) -> 71.88282367 | J73: Euro | K73: Relativo a Euro/m3 (de solución nutritiva aportada al cultivo): | T73: =H73/(Parametri!I27*Parametri!I28)*1000 -> 0.4792188245
AO85: =Calcolo!F53*'Acidi & concimi'!H37+Calcolo!F54*'Acidi & concimi'!H38+Calcolo!F55*'Acidi & concimi'!H39+Calcolo!F58*'Acidi & concimi'!H42+Calcolo!F59*'Acidi & concimi'!H43+Calcolo!F60*'Acidi & concimi'!H44+Calcolo!F61*'Acidi & concimi'!H45+Calcolo!F62*'Acidi & concimi'!H46+Calcolo!F63*'Acidi & concimi'!H47+Calcolo!F64*'Acidi & concimi'!H48+Calcolo!F65*'Acidi & concimi'!H49+Calcolo!F66*'Acidi & concimi'!H50+Calcolo!F67*'Acidi & concimi'!H51+Calcolo!F68*'Acidi & concimi'!H52+Calcolo!F69*'Acidi & concimi'!H53+Calcolo!F71*'Acidi & concimi'!H55 -> 0

Sheet Stampa
C1: INFORME
B3: TEST DE PRECIPITACIÓN DE LA SOLUCION MADRE | H3: ? | J3: Guía rápida de inicio | O3: Conversor de unidades (ppm>mM)
B5: Concentración de sales en el tanque A | G5: =((SUM(G43:G47)+G51)*1000+SUM(G48:G50))/Parametri!I28 -> 41.59862008 | H5: g/L | J5: Cálculo | O5: Fertilizantes y ácidos
B6: Concentración de sales en el tanque B | G6: =(SUM(G54:G64)*1000 +SUM(G65:G76))/Parametri!I28 -> 41.59862008 | H6: g/L
J7: Test de precipitación de la SN madre | O7: Entrada
B8: =IF(precip_A>0,IF(precip_B>0,"Hay "&precip_A&" sales precipitadas en el tanque A y "&precip_B&" en el tanque B","Hay "&precip_A&" sales precipitadas en el tanque A"),IF(precip_B>0,"Hay "&precip_B&" sales precipitadas en el tanque B","NO hay precipitación en los tanques de solución madre")) -> NO hay precipitación en los tanques de solución madre
C10: Introducir una nueva relación de dilución
B11: 1: | C11: 100
C14: COMPOSICION DE LA SOLUCION NUTRITIVA
B16: Cultivo y fase | E16: =Parametri!AI31 -> FVH: Fase: 4 sem
B18: Volumen de los tanques de solución madre (L): | F18: =Parametri!I28 -> 1500 | I18: Relación entre nutrientes (en meq)
B19: Relación de dilución | E19: 1: | F19: =Parametri!I27 -> 100 | I19: N/K | K19: =((D37+E37))/(G37) -> 1.431468114
B20: Consigna de pH: | F20: =Parametri!B42 -> 6.5 | I20: NH4/NO3 | K20: =E37/D37 -> 0.1875
B21: Consigna CE (dS/m): | F21: =Parametri!I42 -> 1.49815 | I21: K:Ca: Mg | K21: =(G37)/($G$37+$H$37*2+$I$37*2) -> 0.429924182 | L21: =(H37*2)/($G$37+$H$37*2+$I$37*2) -> 0.3239067148 | M21: =(I37*2)/($G$37+$H$37*2+$I$37*2) -> 0.2461691032
B22: CE esperada (dS/m): | F22: =B37 -> 1.843621605
B24: Agua de riego | C24: ? | D24: (µM para Fe, B, Cu, Zn, Mn, Mo; mM para otros iones)
B25: CE (dS/m) | C25: HCO3- | D25: N-NO3 | E25: N-NH4 | F25: P | G25: K | H25: Ca | I25: Mg | J25: Na | K25: S-SO4 | L25: Cl | M25: Fe | N25: B | O25: Cu | P25: Zn | Q25: Mn | R25: Mo
B26: =Parametri!B18 -> 1.05735 | C26: =Parametri!C18 -> 2.25 | D26: =Parametri!D18 -> 0.66 | E26: =Parametri!E18 -> 0 | F26: =Parametri!F18 -> 0.01 | G26: =Parametri!G18 -> 0.08 | H26: =Parametri!H18 -> 2.4 | I26: =Parametri!I18 -> 1.89 | J26: =Parametri!J18 -> 0.47 | K26: =Parametri!K18 -> 1.59 | L26: =Parametri!L18 -> 2.99 | M26: =Parametri!M18 -> 3.6 | N26: =Parametri!N18 -> 20.4 | O26: =Parametri!O18 -> 0 | P26: =Parametri!P18 -> 0 | Q26: =Parametri!Q18 -> 1.6 | R26: =Parametri!R18 -> 0
B27: ppm | C27: =C26*61 -> 137.25 | D27: =D26*14.007 -> 9.24462 | E27: =E26*14.007 -> 0 | F27: =F26*30.97 -> 0.3097 | G27: =G26*39.1 -> 3.128 | H27: =H26*40.08 -> 96.192 | I27: =I26*24.31 -> 45.9459 | J27: =J26*22.9898 -> 10.805206 | K27: =K26*32 -> 50.88 | L27: =L26*35.47 -> 106.0553 | M27: =M26*55.85/1000 -> 0.20106 | N27: =N26*10.8/1000 -> 0.22032 | O27: =O26*63.55/1000 -> 0 | P27: =P26*65.38/1000 -> 0 | Q27: =Q26*54.94/1000 -> 0.087904 | R27: =R26*95.95/1000 -> 0
B28: =IF(B26<1.001,"OK","ALTO") -> ALTO | C28: =IF(C27<300.01,"OK","ALTO") -> OK | D28: =IF(D27<50.01,"OK","ALTO") -> OK | E28: =IF(E27<14.01,"OK","ALTO") -> OK | F28: =IF(F27<30.01,"OK","ALTO") -> OK | G28: =IF(G27<100.01,"OK","ALTO") -> OK | H28: =IF(H27<160.01,"OK","ALTO") -> OK | I28: =IF(I27<25.01,"OK","ALTO") -> ALTO | J28: =IF(J27<70.01,"OK","ALTO") -> OK | K28: =IF(K27<90.01,"OK","ALTO") -> OK | L28: =IF(L27<105.01,"OK","ALTO") -> ALTO | M28: =IF(M27>5,"ALTO","OK") -> OK | N28: =IF(N27<0.751,"OK","ALTO") -> OK | O28: =IF(O27>1,"ALTO","OK") -> OK | P28: =IF(P27>2,"ALTO","OK") -> OK | Q28: =IF(Q27>0.5,"ALTO","OK") -> OK | R28: =IF(R27>0.2,"ALTO","OK") -> OK
B30: Solución seleccionada (µM para Fe, B, Cu, Zn, Mn, Mo; mM para otros iones)
B31: CE (dS/m) | D31: N-NO3 | E31: N-NH4 | F31: P | G31: K | H31: Ca | I31: Mg | J31: Na | K31: S-SO4 | L31: Cl | M31: Fe | N31: B | O31: Cu | P31: Zn | Q31: Mn | R31: Mo
B32: =Parametri!B36 -> 1.4535 | C32: mM /mM | D32: =Parametri!C36 -> 8 | E32: =Parametri!D36 -> 1.5 | F32: =Parametri!E36 -> 1 | G32: =Parametri!F36 -> 3 | H32: =Parametri!G36 -> 2.5 | I32: =Parametri!H36 -> 1.9 | J32: =Parametri!I36 -> 0 | K32: =Parametri!J36 -> 2 | L32: =Parametri!K36 -> 0 | M32: =Parametri!L36 -> 10 | N32: =Parametri!M36 -> 0.8 | O32: =Parametri!N36 -> 0.05 | P32: =Parametri!O36 -> 0.05 | Q32: =Parametri!P36 -> 4.6 | R32: =Parametri!Q36 -> 0.4
C33: ppm | D33: =D32*14.007 -> 112.056 | E33: =E32*14.007 -> 21.0105 | F33: =F32*30.97 -> 30.97 | G33: =G32*39.1 -> 117.3 | H33: =H32*40.08 -> 100.2 | I33: =I32*24.31 -> 46.189 | J33: =J32*22.9898 -> 0 | K33: =K32*32 -> 64 | L33: =L32*35.47 -> 0 | M33: =M32*55.85/1000 -> 0.5585 | N33: =N32*10.8/1000 -> 0.00864 | O33: =O32*63.55/1000 -> 0.0031775 | P33: =P32*65.38/1000 -> 0.003269 | Q33: =Q32*54.94/1000 -> 0.252724 | R33: =R32*95.95/1000 -> 0.03838
B35: Solución nutritiva calculada (µM para Fe, B, Cu, Zn, Mn, Mo; mM para otros iones)
B36: CE (dS/m) | D36: N-NO3 | E36: N-NH4 | F36: P | G36: K | H36: Ca | I36: Mg | J36: Na | K36: S-SO4 | L36: Cl | M36: Fe | N36: B | O36: Cu | P36: Zn | Q36: Mn | R36: Mo
B37: =IF((E37+G37+H37*2+I37*2+J37)=0,0,(E37+G37+H37*2+I37*2+J37)*0.095+ 0.19) -> 1.843621605 | C37: mM /mM | D37: =Calcolo!G12 -> 8 | E37: =Calcolo!H12 -> 1.5 | F37: =Calcolo!I12 -> 1 | G37: =Calcolo!J12 -> 6.636543215 | H37: =Calcolo!K12 -> 2.5 | I37: =Calcolo!L12 -> 1.9 | J37: =Calcolo!M12 -> 0.47 | K37: =Calcolo!N12 -> 1.972924551 | L37: =Calcolo!O12 -> 3.089877574 | M37: =Calcolo!P12 -> 10 | N37: =Calcolo!Q12 -> 20.90917379 | O37: =Calcolo!R12 -> 0.01730630031 | P37: =Calcolo!S12 -> 0.02523283997 | Q37: =Calcolo!T12 -> 4.602772255 | R37: =Calcolo!U12 -> 0.2292476049
C38: ppm | D38: =D37*14.007 -> 112.056 | E38: =E37*14.007 -> 21.0105 | F38: =F37*30.97 -> 30.97 | G38: =G37*39.1 -> 259.4888397 | H38: =H37*40.08 -> 100.2 | I38: =I37*24.31 -> 46.189 | J38: =J37*22.9898 -> 10.805206 | K38: =K37*32 -> 63.13358563 | L38: =L37*35.47 -> 109.5979576 | M38: =M37*55.85/1000 -> 0.5585 | N38: =N37*10.8/1000 -> 0.2258190769 | O38: =O37*63.55/1000 -> 0.001099815385 | P38: =P37*65.38/1000 -> 0.001649723077 | Q38: =Q37*54.94/1000 -> 0.2528763077 | R38: =R37*95.95/1000 -> 0.02199630769
B40: Cantidad de fertilizantes a disolver en los tanques de solución madre.
X41: Kg | Z41: A= | AA41: =(SUM(Calcolo!F29:F31)+Calcolo!F34+SUM(Calcolo!F53:F55)+Calcolo!F71) -> 21.82915964 | AB41: mg/L
B42: Tanque A: | J42: Tanque ácido: | X42: g | Z42: B= | AA42: =(SUM(Calcolo!F24:F26)+Calcolo!F35+Calcolo!F36+Calcolo!F39+Calcolo!F42+Calcolo!F43+Calcolo!F49+Calcolo!F50+SUM(Calcolo!F58:F69)) -> 170.9655498 | AB42: mg/L
B43: =IF(Calcolo!F29>0,Calcolo!B29,0) -> Nitrato cálcico | G43: =IF(Calcolo!F29>0,Calcolo!F29*Parametri!$I$27*Parametri!$I$28/1000000,0) -> 1.616998386 | H43: =IF(Calcolo!F29>0,$X$41,0) -> Kg | X43: L
B44: =IF(Calcolo!F30>0,Calcolo!B29,0) -> 0 | G44: =IF(Calcolo!F30>0,Calcolo!F30*Parametri!$I$27*Parametri!$I$28/1000000,0) -> 0 | H44: =IF(Calcolo!F30>0,$X$41,0) -> 0 | J44: =IF(Calcolo!F17>0,Calcolo!B17,0) -> Ácido nítrico | O44: =IF(Calcolo!F17>0,Calcolo!F17*Parametri!$I$27*Parametri!$I$28/1000,0) -> 9.754658932 | P44: =IF(Calcolo!F17>0,$X$43,0) -> L
B45: =IF(Calcolo!F31>0,Calcolo!B31,0) -> Cloruro cálcico | G45: =IF(Calcolo!F31>0,Calcolo!F31*Parametri!$I$27*Parametri!$I$28/1000000,0) -> 0.8325140206 | H45: =IF(Calcolo!F31>0,$X$41,0) -> Kg | J45: =IF(Calcolo!F18>0,Calcolo!B18,0) -> 0 | O45: =IF(Calcolo!F18>0,Calcolo!F18*Parametri!$I$27*Parametri!$I$28/1000,0) -> 0 | P45: =IF(Calcolo!F18>0,$X$43,0) -> 0
B46: =IF(Calcolo!F34>0,Calcolo!B34,0) -> 0 | G46: =IF(Calcolo!F34>0,Calcolo!F34*Parametri!$I$27*Parametri!$I$28/1000000,0) -> 0 | H46: =IF(Calcolo!F34>0,$X$41,0) -> 0 | J46: =IF(Calcolo!F19>0,Calcolo!B19,0) -> 0 | O46: =IF(Calcolo!F19>0,Calcolo!F19*Parametri!$I$27*Parametri!$I$28/1000,0) -> 0 | P46: =IF(Calcolo!F19>0,$X$43,0) -> 0
B47: =IF(G47>0,Calcolo!B46,0) -> Nitrato potásico | G47: =IF(Calcolo!F46>0,IF((AA41-AA42)>0,IF((AA41-AA42)>Calcolo!F46,0,((Calcolo!F46-(Stampa!AA41-Stampa!AA42))/2)*Parametri!$I$27*Parametri!$I$28/1000000),IF((-AA41+AA42)>Calcolo!F46,Calcolo!F46*Parametri!$I$27*Parametri!$I$28/1000000,(((Stampa!AA42-Stampa!AA41)+(Calcolo!F46-(Stampa!AA42-Stampa!AA41))/2)*Parametri!$I$27*Parametri!$I$28/1000000))),0) -> 59.12355618 | H47: =IF(G47>0,$X$41,0) -> Kg | J47: =IF(Calcolo!F20>0,Calcolo!B20,0) -> 0 | O47: =IF(Calcolo!F20>0,Calcolo!F20*Parametri!$I$27*Parametri!$I$28/1000,0) -> 0 | P47: =IF(Calcolo!F20>0,$X$43,0) -> 0
B48: =IF(Calcolo!F53>0,Calcolo!B53,0) -> Mix micro AZ | G48: =IF(Calcolo!F53>0,Calcolo!F53*Parametri!$I$27*Parametri!$I$28/1000,0) -> 824.8615385 | H48: =IF(Calcolo!F53>0,$X$42,0) -> g
B49: =IF(Calcolo!F54>0,Calcolo!B54,0) -> 0 | G49: =IF(Calcolo!F54>0,Calcolo!F54*Parametri!$I$27*Parametri!$I$28/1000,0) -> 0 | H49: =IF(Calcolo!F54>0,$X$42,0) -> 0
B50: =IF(Calcolo!F55>0,Calcolo!B55,0) -> 0 | G50: =IF(Calcolo!F55>0,Calcolo!F55*Parametri!$I$27*Parametri!$I$28/1000,0) -> 0 | H50: =IF(Calcolo!F55>0,$X$42,0) -> 0
B51: =IF(Calcolo!F71>0,Calcolo!B71,0) -> 0 | G51: =IF(Calcolo!F71>0,Calcolo!F71*Parametri!$I$27*Parametri!$I$28/1000000,0) -> 0 | H51: =IF(Calcolo!F71>0,$X$41,0) -> 0
B53: Tanque B:
B54: =IF(Calcolo!F24>0,Calcolo!B24,0) -> 0 | G54: =IF(Calcolo!F24>0,Calcolo!F24*Parametri!$I$27*Parametri!$I$28/1000000,0) -> 0 | H54: =IF(Calcolo!F24>0,$X$41,0) -> 0
B55: =IF(Calcolo!F25>0,Calcolo!B25,0) -> 0 | G55: =IF(Calcolo!F25>0,Calcolo!F25*Parametri!$I$27*Parametri!$I$28/1000000,0) -> 0 | H55: =IF(Calcolo!F25>0,$X$41,0) -> 0
B56: =IF(Calcolo!F26>0,Calcolo!B26,0) -> 0 | G56: =IF(Calcolo!F26>0,Calcolo!F26*Parametri!$I$27*Parametri!$I$28/1000000,0) -> 0 | H56: =IF(Calcolo!F26>0,$X$41,0) -> 0
B57: =IF(Calcolo!F42>0,Calcolo!B42,0) -> Sulfato de magnesio | G57: =IF(Calcolo!F42>0,Calcolo!F42*Parametri!$I$27*Parametri!$I$28/1000000,0) -> 0.3803623392 | H57: =IF(Calcolo!F42>0,$X$41,0) -> Kg
B58: =IF(Calcolo!F43>0,Calcolo!B43,0) -> 0 | G58: =IF(Calcolo!F43>0,Calcolo!F43*Parametri!$I$27*Parametri!$I$28/1000000,0) -> 0 | H58: =IF(Calcolo!F43>0,$X$41,0) -> 0
B59: =IF(Calcolo!F35>0,Calcolo!B35,0) -> Sulfato amónico | G59: =IF(Calcolo!F35>0,Calcolo!F35*Parametri!$I$27*Parametri!$I$28/1000000,0) -> 7.383382125 | H59: =IF(Calcolo!F35>0,$X$41,0) -> Kg
B60: =IF(G60>0,Calcolo!B36,0) -> Fosfato monoamónico | G60: =IF(Calcolo!F36>0,Calcolo!F36*Parametri!$I$27*Parametri!$I$28/1000000,0) -> 12.83013943 | H60: =IF(Calcolo!F36>0,$X$41,0) -> Kg
B61: =IF(Calcolo!F39>0,Calcolo!B39,0) -> Fosfato monopotásico | G61: =IF(Calcolo!F39>0,Calcolo!F39*Parametri!$I$27*Parametri!$I$28/1000000,0) -> 5.050948574 | H61: =IF(Calcolo!F39>0,$X$41,0) -> Kg
B62: =IF(G62>0,Calcolo!B46,0) -> Nitrato potásico | G62: =IF(Calcolo!F46>0,(Calcolo!F46*Parametri!$I$27*Parametri!$I$28/1000000)-G47,0) -> 36.75309765 | H62: =IF(G62>0,$X$41,0) -> Kg
B63: =IF(Calcolo!F49>0,Calcolo!B49,0) -> 0 | G63: =IF(Calcolo!F49>0,Calcolo!F49*Parametri!$I$27*Parametri!$I$28/1000000,0) -> 0 | H63: =IF(Calcolo!F49>0,$X$41,0) -> 0
B64: =IF(Calcolo!F50>0,Calcolo!B50,0) -> 0 | G64: =IF(Calcolo!F50>0,Calcolo!F50*Parametri!$I$27*Parametri!$I$28/1000000,0) -> 0 | H64: =IF(Calcolo!F50>0,$X$41,0) -> 0
B65: =IF(Calcolo!F58>0,Calcolo!B58,0) -> 0 | G65: =IF(Calcolo!F58>0,Calcolo!F58*Parametri!$I$27*Parametri!$I$28/1000,0) -> 0 | H65: =IF(Calcolo!F58>0,$X$42,0) -> 0
B66: =IF(Calcolo!F59>0,Calcolo!B59,0) -> 0 | G66: =IF(Calcolo!F59>0,Calcolo!F59*Parametri!$I$27*Parametri!$I$28/1000,0) -> 0 | H66: =IF(Calcolo!F59>0,$X$42,0) -> 0
B67: =IF(Calcolo!F60>0,Calcolo!B60,0) -> 0 | G67: =IF(Calcolo!F60>0,Calcolo!F60*Parametri!$I$27*Parametri!$I$28/1000,0) -> 0 | H67: =IF(Calcolo!F60>0,$X$42,0) -> 0
B68: =IF(Calcolo!F61>0,Calcolo!B61,0) -> 0 | G68: =IF(Calcolo!F61>0,Calcolo!F61*Parametri!$I$27*Parametri!$I$28/1000,0) -> 0 | H68: =IF(Calcolo!F61>0,$X$42,0) -> 0
B69: =IF(Calcolo!F62>0,Calcolo!B62,0) -> 0 | G69: =IF(Calcolo!F62>0,Calcolo!F62*Parametri!$I$27*Parametri!$I$28/1000,0) -> 0 | H69: =IF(Calcolo!F62>0,$X$42,0) -> 0
B70: =IF(Calcolo!F63>0,Calcolo!B63,0) -> 0 | G70: =IF(Calcolo!F63>0,Calcolo!F63*Parametri!$I$27*Parametri!$I$28/1000,0) -> 0 | H70: =IF(Calcolo!F63>0,$X$42,0) -> 0
B71: =IF(Calcolo!F64>0,Calcolo!B64,0) -> 0 | G71: =IF(Calcolo!F64>0,Calcolo!F64*Parametri!$I$27*Parametri!$I$28/1000,0) -> 0 | H71: =IF(Calcolo!F64>0,$X$42,0) -> 0
B72: =IF(Calcolo!F65>0,Calcolo!B65,0) -> 0 | G72: =IF(Calcolo!F65>0,Calcolo!F65*Parametri!$I$27*Parametri!$I$28/1000,0) -> 0 | H72: =IF(Calcolo!F65>0,$X$42,0) -> 0
B73: =IF(Calcolo!F66>0,Calcolo!B66,0) -> 0 | G73: =IF(Calcolo!F66>0,Calcolo!F66*Parametri!$I$27*Parametri!$I$28/1000,0) -> 0 | H73: =IF(Calcolo!F66>0,$X$42,0) -> 0
B74: =IF(Calcolo!F67>0,Calcolo!B67,0) -> 0 | G74: =IF(Calcolo!F67>0,Calcolo!F67*Parametri!$I$27*Parametri!$I$28/1000,0) -> 0 | H74: =IF(Calcolo!F67>0,$X$42,0) -> 0
B75: =IF(Calcolo!F68>0,Calcolo!B68,0) -> 0 | G75: =IF(Calcolo!F68>0,Calcolo!F68*Parametri!$I$27*Parametri!$I$28/1000,0) -> 0 | H75: =IF(Calcolo!F68>0,$X$42,0) -> 0
B76: =IF(Calcolo!F69>0,Calcolo!B69,0) -> 0 | G76: =IF(Calcolo!F69>0,Calcolo!F69*Parametri!$I$27*Parametri!$I$28/1000,0) -> 0 | H76: =IF(Calcolo!F69>0,$X$42,0) -> 0
B79: =Calcolo!B73 -> Coste total de las soluciones madre | J79: =Calcolo!H73 -> 71.88282367 | L79: Euro | M79: Relativo a Euro/m3 de solución nutritiva aportada al cultivo= | U79: =Calcolo!T73 -> 0.4792188245

Sheet Test precipitazioni
B2: PRUEBA DE PRECIPITACIÓN DE LA SOLUCIÓN MADRE
H3: Guía rápida de inicio | M3: Conversor de unidades (ppm>mM)
H5: Soluciones nutritivas | M5: Fertilizantes y ácidos
H7: Informe | M7: Entrada
B10: Solución madre tanque A (g/L)
B11: N-NO3 | C11: N-NH4 | D11: P-PO4 | E11: K | F11: Ca | G11: Mg | H11: Na | I11: S-SO4 | J11: Cl | K11: Fe | L11: B | M11: Cu | N11: Zn | O11: Mn | P11: Mo
A12: moles/L | B12: =(SUM(Calcolo!G29:G31)+Calcolo!G34+(Stampa!$G$47*'Acidi & concimi'!AI33*1000000/(Parametri!$I$27*Parametri!$I$28))+SUM(Calcolo!G53:G55)+Calcolo!G71)*(Parametri!$I$27)/1000+Parametri!D18/1000 -> 0.3999975465 | C12: =(SUM(Calcolo!H29:H31)+Calcolo!H34+(Stampa!$G$47*'Acidi & concimi'!AJ33*1000000/(Parametri!$I$27*Parametri!$I$28))+SUM(Calcolo!H53:H55)+Calcolo!H71)*(Parametri!$I$27)/1000+Parametri!E18/1000 -> 0.001000498752 | D12: =(SUM(Calcolo!I29:I31)+Calcolo!I34+(Stampa!$G$47*'Acidi & concimi'!AK33*1000000/(Parametri!$I$27*Parametri!$I$28))+SUM(Calcolo!I53:I55)+Calcolo!I71)*(Parametri!$I$27)/1000+Parametri!F18/1000 -> 1e-05 | E12: =(SUM(Calcolo!J29:J31)+Calcolo!J34+(Stampa!$G$47*'Acidi & concimi'!AL33*1000000/(Parametri!$I$27*Parametri!$I$28))+SUM(Calcolo!J53:J55)+Calcolo!J71)*(Parametri!$I$27)/1000+Parametri!G18/1000 -> 0.3891462661 | F12: =(SUM(Calcolo!K29:K31)+Calcolo!K34+(Stampa!$G$47*'Acidi & concimi'!AM33*1000000/(Parametri!$I$27*Parametri!$I$28))+SUM(Calcolo!K53:K55)+Calcolo!K71)*(Parametri!$I$27)/1000+Parametri!H18/1000 -> 0.0124 | G12: =(SUM(Calcolo!L29:L31)+Calcolo!L34+(Stampa!$G$47*'Acidi & concimi'!AN33*1000000/(Parametri!$I$27*Parametri!$I$28))+SUM(Calcolo!L53:L55)+Calcolo!L71)*(Parametri!$I$27)/1000+Parametri!I18/1000 -> 0.00189 | H12: =(SUM(Calcolo!M29:M31)+Calcolo!M34+(Stampa!$G$47*'Acidi & concimi'!AO33*1000000/(Parametri!$I$27*Parametri!$I$28))+SUM(Calcolo!M53:M55)+Calcolo!M71)*(Parametri!$I$27)/1000+Parametri!J18/1000 -> 0.00047 | I12: =(SUM(Calcolo!N29:N31)+Calcolo!N34+(Stampa!$G$47*'Acidi & concimi'!AP33*1000000/(Parametri!$I$27*Parametri!$I$28))+SUM(Calcolo!N53:N55)+Calcolo!N71)*(Parametri!$I$27)/1000+Parametri!K18/1000 -> 0.00159 | J12: =(SUM(Calcolo!O29:O31)+Calcolo!O34+(Stampa!$G$47*'Acidi & concimi'!AQ33*1000000/(Parametri!$I$27*Parametri!$I$28))+SUM(Calcolo!O53:O55)+Calcolo!O71)*(Parametri!$I$27)/1000+Parametri!L18/1000 -> 0.01297775741 | K12: =(SUM(Calcolo!P29:P31)+Calcolo!P34+(Stampa!$G$47*'Acidi & concimi'!AR33*1000000/(Parametri!$I$27*Parametri!$I$28))+SUM(Calcolo!P53:P55)+Calcolo!P71)*(Parametri!$I$27)/1000+Parametri!M18/1000 -> 0.6436 | L12: =(SUM(Calcolo!Q29:Q31)+Calcolo!Q34+(Stampa!$G$47*'Acidi & concimi'!AS33*1000000/(Parametri!$I$27*Parametri!$I$28))+SUM(Calcolo!Q53:Q55)+Calcolo!Q71)*(Parametri!$I$27)/1000+Parametri!N18/1000 -> 0.07131737892 | M12: =(SUM(Calcolo!R29:R31)+Calcolo!R34+(Stampa!$G$47*'Acidi & concimi'!AT33*1000000/(Parametri!$I$27*Parametri!$I$28))+SUM(Calcolo!R53:R55)+Calcolo!R71)*(Parametri!$I$27)/1000+Parametri!O18/1000 -> 0.001730630031 | N12: =(SUM(Calcolo!S29:S31)+Calcolo!S34+(Stampa!$G$47*'Acidi & concimi'!AU33*1000000/(Parametri!$I$27*Parametri!$I$28))+SUM(Calcolo!S53:S55)+Calcolo!S71)*(Parametri!$I$27)/1000+Parametri!P18/1000 -> 0.002523283997 | O12: =(SUM(Calcolo!T29:T31)+Calcolo!T34+(Stampa!$G$47*'Acidi & concimi'!AV33*1000000/(Parametri!$I$27*Parametri!$I$28))+SUM(Calcolo!T53:T55)+Calcolo!T71)*(Parametri!$I$27)/1000+Parametri!Q18/1000 -> 0.3018772255 | P12: =(SUM(Calcolo!U29:U31)+Calcolo!U34+(Stampa!$G$47*'Acidi & concimi'!AW33*1000000/(Parametri!$I$27*Parametri!$I$28))+SUM(Calcolo!U53:U55)+Calcolo!U71)*(Parametri!$I$27)/1000+Parametri!R18/1000 -> 0.02292476049
A13: p.m. | B13: 14.007 | C13: 14.007 | D13: 30.974 | E13: 39.1 | F13: 40.08 | G13: 24.312 | H13: 22.9898 | I13: 32.06 | J13: 35.473 | K13: 55.85 | L13: 10.8 | M13: 63.55 | N13: 65.38 | O13: 54.94 | P13: 95.95
B16: Solución madre tanque B (g/L)
B17: N-NO3 | C17: N-NH4 | D17: P-PO4 | E17: K | F17: Ca | G17: Mg | H17: Na | I17: S-SO4 | J17: Cl | K17: Fe | L17: B | M17: Cu | N17: Zn | O17: Mn | P17: Mo
A18: moles/L | B18: =(SUM(Calcolo!G24:G26)+SUM(Calcolo!G35:'Calcolo'!G36)+Calcolo!G39+SUM(Calcolo!G42:G43)+SUM(Calcolo!G49:G50)+(Stampa!$G$62*'Acidi & concimi'!AI33*1000000/(Parametri!$I$27*Parametri!$I$28))+SUM(Calcolo!G58:G69))*(Parametri!$I$27)/1000+Parametri!D18/1000 -> 0.2420596562 | C18: =(SUM(Calcolo!H24:H26)+SUM(Calcolo!H35:'Calcolo'!H36)+Calcolo!H39+SUM(Calcolo!H42:H43)+SUM(Calcolo!H49:H50)+(Stampa!$G$62*'Acidi & concimi'!AJ33*1000000/(Parametri!$I$27*Parametri!$I$28))+SUM(Calcolo!H58:H69))*(Parametri!$I$27)/1000+Parametri!E18/1000 -> 0.1489995012 | D18: =(SUM(Calcolo!I24:I26)+SUM(Calcolo!I35:'Calcolo'!I36)+Calcolo!I39+SUM(Calcolo!I42:I43)+SUM(Calcolo!I49:I50)+(Stampa!$G$62*'Acidi & concimi'!AK33*1000000/(Parametri!$I$27*Parametri!$I$28))+SUM(Calcolo!I58:I69))*(Parametri!$I$27)/1000+Parametri!F18/1000 -> 0.09901 | E18: =(SUM(Calcolo!J24:J26)+SUM(Calcolo!J35:'Calcolo'!J36)+Calcolo!J39+SUM(Calcolo!J42:J43)+SUM(Calcolo!J49:J50)+(Stampa!$G$62*'Acidi & concimi'!AL33*1000000/(Parametri!$I$27*Parametri!$I$28))+SUM(Calcolo!J58:J69))*(Parametri!$I$27)/1000+Parametri!G18/1000 -> 0.2666680554 | F18: =(SUM(Calcolo!K24:K26)+SUM(Calcolo!K35:'Calcolo'!K36)+Calcolo!K39+SUM(Calcolo!K42:K43)+SUM(Calcolo!K49:K50)+(Stampa!$G$62*'Acidi & concimi'!AM33*1000000/(Parametri!$I$27*Parametri!$I$28))+SUM(Calcolo!K58:K69))*(Parametri!$I$27)/1000+Parametri!H18/1000 -> 0.0024 | G18: =(SUM(Calcolo!L24:L26)+SUM(Calcolo!L35:'Calcolo'!L36)+Calcolo!L39+SUM(Calcolo!L42:L43)+SUM(Calcolo!L49:L50)+(Stampa!$G$62*'Acidi & concimi'!AN33*1000000/(Parametri!$I$27*Parametri!$I$28))+SUM(Calcolo!L58:L69))*(Parametri!$I$27)/1000+Parametri!I18/1000 -> 0.00289 | H18: =(SUM(Calcolo!M24:M26)+SUM(Calcolo!M35:'Calcolo'!M36)+Calcolo!M39+SUM(Calcolo!M42:M43)+SUM(Calcolo!M49:M50)+(Stampa!$G$62*'Acidi & concimi'!AO33*1000000/(Parametri!$I$27*Parametri!$I$28))+SUM(Calcolo!M58:M69))*(Parametri!$I$27)/1000+Parametri!J18/1000 -> 0.00047 | I18: =(SUM(Calcolo!N24:N26)+SUM(Calcolo!N35:'Calcolo'!N36)+Calcolo!N39+SUM(Calcolo!N42:N43)+SUM(Calcolo!N49:N50)+(Stampa!$G$62*'Acidi & concimi'!AP33*1000000/(Parametri!$I$27*Parametri!$I$28))+SUM(Calcolo!N58:N69))*(Parametri!$I$27)/1000+Parametri!K18/1000 -> 0.03988245509 | J18: =(SUM(Calcolo!O24:O26)+SUM(Calcolo!O35:'Calcolo'!O36)+Calcolo!O39+SUM(Calcolo!O42:O43)+SUM(Calcolo!O49:O50)+(Stampa!$G$62*'Acidi & concimi'!AQ33*1000000/(Parametri!$I$27*Parametri!$I$28))+SUM(Calcolo!O58:O69))*(Parametri!$I$27)/1000+Parametri!L18/1000 -> 0.00299 | K18: =(SUM(Calcolo!P24:P26)+SUM(Calcolo!P35:'Calcolo'!P36)+Calcolo!P39+SUM(Calcolo!P42:P43)+SUM(Calcolo!P49:P50)+(Stampa!$G$62*'Acidi & concimi'!AR33*1000000/(Parametri!$I$27*Parametri!$I$28))+SUM(Calcolo!P58:P69))*(Parametri!$I$27)/1000+Parametri!M18/1000 -> 0.0036 | L18: =(SUM(Calcolo!Q24:Q26)+SUM(Calcolo!Q35:'Calcolo'!Q36)+Calcolo!Q39+SUM(Calcolo!Q42:Q43)+SUM(Calcolo!Q49:Q50)+(Stampa!$G$62*'Acidi & concimi'!AS33*1000000/(Parametri!$I$27*Parametri!$I$28))+SUM(Calcolo!Q58:Q69))*(Parametri!$I$27)/1000+Parametri!N18/1000 -> 0.0204 | M18: =(SUM(Calcolo!R24:R26)+SUM(Calcolo!R35:'Calcolo'!R36)+Calcolo!R39+SUM(Calcolo!R42:R43)+SUM(Calcolo!R49:R50)+(Stampa!$G$62*'Acidi & concimi'!AT33*1000000/(Parametri!$I$27*Parametri!$I$28))+SUM(Calcolo!R58:R69))*(Parametri!$I$27)/1000+Parametri!O18/1000 -> 0 | N18: =(SUM(Calcolo!S24:S26)+SUM(Calcolo!S35:'Calcolo'!S36)+Calcolo!S39+SUM(Calcolo!S42:S43)+SUM(Calcolo!S49:S50)+(Stampa!$G$62*'Acidi & concimi'!AU33*1000000/(Parametri!$I$27*Parametri!$I$28))+SUM(Calcolo!S58:S69))*(Parametri!$I$27)/1000+Parametri!P18/1000 -> 0 | O18: =(SUM(Calcolo!T24:T26)+SUM(Calcolo!T35:'Calcolo'!T36)+Calcolo!T39+SUM(Calcolo!T42:T43)+SUM(Calcolo!T49:T50)+(Stampa!$G$62*'Acidi & concimi'!AV33*1000000/(Parametri!$I$27*Parametri!$I$28))+SUM(Calcolo!T58:T69))*(Parametri!$I$27)/1000+Parametri!Q18/1000 -> 0.0016 | P18: =(SUM(Calcolo!U24:U26)+SUM(Calcolo!U35:'Calcolo'!U36)+Calcolo!U39+SUM(Calcolo!U42:U43)+SUM(Calcolo!U49:U50)+(Stampa!$G$62*'Acidi & concimi'!AW33*1000000/(Parametri!$I$27*Parametri!$I$28))+SUM(Calcolo!U58:U69))*(Parametri!$I$27)/1000+Parametri!R18/1000 -> 0
A19: p.m. | B19: 14.007 | C19: 14.007 | D19: 30.974 | E19: 39.1 | F19: 40.08 | G19: 24.312 | H19: 22.9898 | I19: 32.06 | J19: 35.473 | K19: 55.85 | L19: 10.8 | M19: 63.55 | N19: 65.38 | O19: 54.94 | P19: 95.95
B22: Comprobar precipitados en el Tanque A
C23: PM | D23: Solubilidad | E23: Producto de solubilidad | G23: Kps | H23: Kps calculado
B24: KNO3 | C24: 101.1 | D24: 133 | E24: [K+]*[N03-]=s2 | G24: =((D24/C24)^2) -> 1.730617021 | H24: =E12*B12 -> 0.1556575517 | I24: =IF(H24>G24,B24,0) -> 0 | J24: =IF(H24>G24,"La relación de dilución es demasiado alta"," ") ->  | W24: =IF(H24>G24,1," ") -> 
B25: KCl | C25: 74.55 | D25: 344 | E25: [K+]*[Cl-]= s2 | G25: =((D25/C25)^2) -> 21.29225161 | H25: =E12*J12 -> 0.005050245838 | I25: =IF(H25>G25,B25,0) -> 0 | J25: =IF(H25>G25,"La relación de dilución es demasiado alta"," ") ->  | W25: =IF(H25>G25,1," ") -> 
B26: CaNO3 | C26: 164.09 | D26: 1212 | E26: [Ca]*[NO3-]2=4s2 | G26: =((D26/C26)^3)*4 -> 1611.838429 | H26: =F12*B12^2 -> 0.001983975662 | I26: 0 | J26: =IF(H26>G26,"La relación de dilución es demasiado alta"," ") -> 
B27: CaCl2 | C27: 110.99 | D27: 745 | E27: [Ca]*[Cl-]2=4s3 | G27: =((D27/C27)^3)*4 -> 1209.698815 | H27: =F12*J12^2 -> 2.088435124e-06 | I27: 0 | J27: =IF(H27>G27,"La relación de dilución es demasiado alta"," ") -> 
B28: Ca(H2PO4)2*H2O | C28: 252.07 | D28: 18 | E28: Ca(H2PO4)2=4s2 | G28: =((D28/C28)^3)*4 -> 0.00145651185 | H28: =F12*D12^2 -> 1.24e-12 | I28: 0 | J28: =IF(H28>G28,"La relación de dilución es demasiado alta"," ") -> 
B29: CaSO4 | C29: 136.14 | D29: 2.09 | E29: CaSO4=s2 | G29: =((D29/C29)^2) -> 0.0002356791047 | H29: =F12*I12 -> 1.9716e-05 | I29: 0 | J29: =IF(H29>G29,"La relación de dilución es demasiado alta , o esta utilizando sales que contienen sulfatos"," ") -> 
B30: NH4NO3 | C30: 80.04 | D30: 1183 | E30: [NH4+]*[NO3-]= s2 | G30: =((D30/C30)^2) -> 218.45165 | H30: =C12*B12 -> 0.000400197046 | I30: 0 | J30: =IF(H30>G30,"La relación de dilución es demasiado alta "," ") -> 
B31: NH4Cl | C31: 53.49 | D31: 29.7 | E31: [NH4+]*[Cl-]= s2 | G31: =((D31/C31)^2) -> 0.3082958671 | H31: =C12*J12 -> 1.298423009e-05 | I31: 0 | J31: =IF(H31>G31,"La relación de dilución es demasiado alta"," ") -> 
B32: NaNO3 | C32: 84.99 | D32: 921 | E32: [Na+]*[NO3-]= s2 | G32: =((D32/C32)^2) -> 117.4312279 | H32: =H12*B12 -> 0.0001879988469 | I32: 0 | J32: =IF(H32>G32,"La relación de dilución es demasiado alta"," ") -> 
B33: NaCl | C33: 55.44 | D33: 357 | E33: [Na+]*[Cl-]= s2 | G33: =((D33/C33)^2) -> 41.46579431 | H33: =H12*J12 -> 6.099545983e-06 | I33: 0 | J33: =IF(H33>G33,"La relación de dilución es demasiado alta"," ") -> 
B34: Fe(NO3)2*6H2O | C34: 287.95 | D34: 835 | E34: [Fe2+]*[2NO3-]2=4s3 | G34: =((D34/C34)^3)*4 -> 97.53672501 | H34: =K12*(B12)^2 -> 0.1029747368 | I34: 0 | J34: =IF(H34>G34,"La relación de dilución es demasiado alta"," ") -> 
B35: Fe(Cl)2 | C35: 126.75 | D35: 644 | E35: [Fe2+]*[2Cl-]2=4s3 | G35: =((D35/C35)^3)*4 -> 524.654847 | H35: =K12*(J12)^2 -> 0.0001083965198 | I35: 0 | J35: =IF(H35>G35,"La relación de dilución es demasiado alta"," ") -> 
H36: Hay | I36: =SUM(W24:W35) -> 0 | J36: sales precipitadas
B39: Comprobar precipitados en el Tanque B
C40: PM | D40: Solubilidad | E40: Producto de solubilidad | G40: Kps | H40: Calculated Kps
B41: CaNO3 | C41: 164.09 | D41: 1212 | E41: [Ca]*[NO3-]2=4s2 | G41: =((D41/C41)^3)*4 -> 1611.838429 | H41: =F18*B18^2 -> 0.0001406229051 | I41: =IF(H41>G41,B41,0) -> 0 | J41: =IF(H41>G41,"La relación de dilución es demasiado alta"," ") ->  | W41: =IF(H41>G41,1," ") -> 
B42: CaCl2 | C42: 110.99 | D42: 745 | E42: [Ca]*[Cl-]2=4s3 | G42: =((D42/C42)^3)*4 -> 1209.698815 | H42: =F18*J18^2 -> 2.145624e-08 | I42: 0 | J42: =IF(H42>G42,"La relación de dilución es demasiado alta"," ") -> 
B43: Ca(H2PO4)2 | C43: 252.07 | D43: 18 | E43: Ca(H2PO4)2=4s2 | G43: =((D43/C43)^3)*4 -> 0.00145651185 | H43: =F18*D18^2 -> 2.352715224e-05 | I43: 0 | J43: =IF(H43>G43,"La relación de dilución es demasiado alta, o la precipitación se debe al Calcio del agua de riego"," ") -> 
B44: CaSO4 | C44: 136.14 | D44: 2.09 | E44: CaSO4=s2 | G44: =((D44/C44)^2) -> 0.0002356791047 | H44: =F18*I18 -> 9.571789221e-05 | I44: 0 | J44: =IF(H44>G44,"La relación de dilución es demasiado alta, o la precipitación se debe al Calcio del agua de riego"," ") -> 
B45: KNO3 | C45: 101.1 | D45: 133 | E45: [K+]*[N03-]=s2 | G45: =((D45/C45)^2) -> 1.730617021 | H45: =E18*B18 -> 0.06454957781 | I45: 0 | J45: =IF(H45>G45,"La relación de dilución es demasiado alta"," ") -> 
B46: KH2PO4 | C46: 136.09 | D46: 133 | E46: [K+]*[H2PO4-]=s2 | G46: =((D46/C46)^2) -> 0.9551044176 | H46: =E18*D18 -> 0.02640280417 | I46: 0
B47: K2SO4 | C47: 174.25 | D47: 120 | E47: [2K+]2*[SO42-]=4s3 | G47: =((D47/C47)^3)*4 -> 1.306427667 | H47: =I18*(E18^2) -> 0.002836115235 | I47: 0
B48: KCl | C48: 74.55 | D48: 344 | E48: [K+]*[Cl-]= s2 | G48: =((D48/C48)^2) -> 21.29225161 | H48: =E18*J18 -> 0.0007973374857 | I48: 0
B49: K2B4O7*8H2O | C49: 377.55 | D49: 267 | E49: [2K+]2*[B4O72-]= 4s3 | G49: =((D49/C49)^3)*4 -> 1.414719539 | H49: =E18^2*(L18/4) -> 0.0003626704441 | I49: 0
B50: K2MoO4 | C50: 238.13 | D50: 1846 | E50: [2K+]2*[MoO42-]=4s3 | G50: =((D50/C50)^3)*4 -> 1863.428552 | H50: =E18^2*P18 -> 0 | I50: 0
B51: (NH4)NO3 | C51: 80.04 | D51: 1183 | E51: [NH4+]*[NO3-]= s2 | G51: =((D51/C51)^2) -> 218.45165 | H51: =C18*B18 -> 0.03606676804 | I51: 0
B52: (NH4)H2PO4 | C52: 83.03 | D52: 1710 | E52: [(NH4)+]*[H2PO4-]=s2 | G52: =((D52/C52)^2) -> 424.1526112 | H52: =C18*D18 -> 0.01475244062 | I52: 0
B53: (NH4)2SO4 | C53: 132.14 | D53: 706 | E53: [2NH4+]2*[SO42-]=4s3 | G53: =((D53/C53)^3)*4 -> 610.0580849 | H53: =C18^2*I18 -> 0.0008854244577 | I53: 0
B54: NH4Cl | C54: 53.49 | D54: 29.7 | E54: [(NH4)+]*[Cl-]= s2 | G54: =((D54/C54)^2) -> 0.3082958671 | H54: =C18*J18 -> 0.0004455085087 | I54: 0
B55: (NH4)2B4O7*4H2O | C55: 263.37 | D55: 72.7 | E55: [2(NH4)+]2*[(B4O7*4H2O)2-]=4s3 | G55: =((D55/C55)^3)*4 -> 0.08413260044 | H55: =C18^2*(L18/4) -> 0.000113224342 | I55: 0
B56: (NH4)6Mo7O24*4H2O | C56: 1235.86 | D56: 430 | E56: [6(NH4)+]6*[(Mo7O24*4H2O)6-]=36s7 | G56: =((D56/C56)^7)*36 -> 0.02222269663 | H56: =C18^6*P18/7 -> 0 | I56: 0
B57: Mg(NO3)2*2H2O | C57: 184.35 | D57: 260 | E57: [Mg2+]*[2(NO3-)*2H2O]2=4s3 | G57: =((D57/C57)^3)*4 -> 11.22149214 | H57: =G18*B18^2 -> 0.0001693334149 | I57: 0
B58: MgSO4 | C58: 120.36 | D58: 260 | E58: [Mg2+]*[SO42-]=s2 | G58: =((D58/C58)^2) -> 4.666404023 | H58: =G18*I18 -> 0.0001152602952 | I58: 0
B59: Mg(Cl)2 | C59: 95.21 | D59: 542.5 | E59: [Mg2+]*[2Cl-]2=4s3 | G59: =((D59/C59)^3)*4 -> 739.965588 | H59: =G18*J18^2 -> 2.5836889e-08 | I59: 0
B60: Mg(MoO4)2 | C60: 184.24 | D60: 137 | E60: [Mg]*[2MoO4-]2=4s3 | G60: =((D60/C60)^3)*4 -> 1.644636475 | H60: =G18*P18^2 -> 0 | I60: 0
B61: Cu(NO3)2*3H2O | C61: 241.6 | D61: 137.8 | E61: [Cu2+]*[(2NO3-)*3H2O]2 | G61: =((D61/C61)^3)*4 -> 0.7421930004 | H61: =M18*B18^2 -> 0 | I61: 0
B62: CuSO4 | C62: 159.6 | D62: 143 | E62: [Cu2+]*[SO42-]=s2 | G62: =((D62/C62)^2) -> 0.8027980352 | H62: =M18*I18 -> 0 | I62: 0
B63: Cu(Cl)2 | C63: 134.45 | D63: 706 | E63: [Cu2+]*[2Cl-]2=4s3 | G63: =((D63/C63)^3)*4 -> 579.150819 | H63: =M18*J18^2 -> 0 | I63: 0
B64: Mn(H2PO4)2*2H2O | C64: 284.94 | D64: 100 | E64: [Mn2+]*[2(H2PO4-)*2H2O]2=4s3 | G64: =((D64/C64)^3)*4 -> 0.1729018864 | H64: =O18*D18^2 -> 1.568476816e-05 | I64: 0
B65: MnSO4 | C65: 151 | D65: 520 | E65: [Mn2+]*[SO42-]=s2 | G65: =((D65/C65)^2) -> 11.85912899 | H65: =O18*I18 -> 6.381192814e-05 | I65: 0
B66: Mn(Cl)2*4H2O | C66: 197.91 | D66: 1510 | E66: [Mn2+]*[2Cl-*4H2O]2=4s3 | G66: =((D66/C66)^3)*4 -> 1776.591651 | H66: =O18*J18^2 -> 1.430416e-08 | I66: 0
B67: Zn(NO3)2*6H2O | C67: 297.48 | D67: 1843 | E67: [Zn2+]*[2NO3-]2=4s3 | G67: =((D67/C67)^3)*4 -> 951.1799311 | H67: =N18*B18^2 -> 0 | I67: 0
B68: Zn(H2PO4)2*2H2O | C68: 295.39 | D68: 250 | E68: [Zn2+]*[(2H2PO4-)*2H2O]2=4s3 | G68: =((D68/C68)^3)*4 -> 2.424893397 | H68: =N18*D18^2 -> 0 | I68: 0
B69: ZnSO4*7H2O | C69: 287.54 | D69: 965 | E69: [Zn2+]*[(SO42-)*7H2O]=s2 | G69: =((D69/C69)^2) -> 11.26310389 | H69: =N18*I18 -> 0 | I69: 0
B70: Zn(Cl)2 | C70: 136.29 | D70: 4320 | E70: [Zn2+]*[2Cl-]2=4s3 | G70: =((D70/C70)^3)*4 -> 127385.2833 | H70: =N18*J18^2 -> 0 | I70: 0 | J70: =IF(H70>G70,"The dilution ratio is too high"," ") -> 
G71: Hay | I71: =SUM(W41:W70) -> 0 | J71: sales precipitadas

Sheet Convertitore
B2: Conversor de unidades (ppm a mM) | I2: Guía rápida de inicio | N2: Cálculo
I4: Soluciones nutritivas | N4: Fertilizantes y ácidos
I6: Informe | N6: Entrada
B10: Para convertir ppm en mM (macroelementos) o µM (Fe, Zn, Mn, Cu, B, Mo) insertar el valor ppm en la celda amarilla.
B11: Los resultados de la conversión se muestran en las celdas verdes.
B13: HCO3- | C13: N-NO3 | D13: N-NH4 | E13: P-PO4 | F13: K | G13: Ca | H13: Mg | I13: Na | J13: S-SO4 | K13: Cl | L13: Fe | M13: B | N13: Cu | O13: Zn | P13: Mn | Q13: Mo
A14: ppm | B14: 259 | C14: 0 | D14: 0 | E14: 0 | F14: 0 | G14: 48 | H14: 35 | I14: 89 | J14: 0 | K14: 130
A15: PM | B15: 61 | C15: 14.007 | D15: 14.007 | E15: 30.974 | F15: 39.1 | G15: 40.08 | H15: 24.312 | I15: 22.9898 | J15: 32.06 | K15: 35.473 | L15: 55.85 | M15: 10.8 | N15: 63.55 | O15: 65.38 | P15: 54.94 | Q15: 95.95
B16: millimoles/L | L16: micromoles/L
B17: =B14/B15 -> 4.245901639 | C17: =C14/C15 -> 0 | D17: 0 | E17: 0 | F17: 0 | G17: 1.19760479 | H17: 1.439618295 | I17: 3.871282047 | J17: 0 | K17: 3.664759113 | L17: =L14/L15*1000 -> 0 | M17: 0 | N17: 0 | O17: 0 | P17: 0 | Q17: 0
